Workbook

Sheet Proceso Judicial
D1: Concepto | E1: Prob Ramo | F1: Prob sin segmentar
D2: Valor PML, Pretensión o Sentencia | E2: =IF(AND('Proceso Judicial'!$E$38="SÍ",'Proceso Judicial'!$E$45=FALSE),'Proceso Judicial'!$E$39,MIN('Proceso Judicial'!$E$35:$E$36)) -> 556665499
D3: Cumple criterios | E3: =IF(AND('Proceso Judicial'!$E$24="SÍ",'Proceso Judicial'!$E$25="SÍ"),"SÍ","NO") -> SÍ
D4: Puntaje cumplimiento | E4: =IF($E$3="NO","NA",$E$54) -> 5
D5: Puntaje tipo del proceso | E5: =IF($E$3="NO","NA",'Proceso Judicial'!E55) -> -1
D6: Puntaje etapa del proceso | E6: =IF($E$3="NO","NA",'Proceso Judicial'!E56) -> 2
D7: Puntaje territorialidad | E7: =IF($E$3="NO","NA",'Proceso Judicial'!E57) -> -0.5
D8: Puntaje garantizado y garantías | E8: =IF($E$3="NO","NA",SUM('Proceso Judicial'!E58:E59)) -> 0
D9: Puntaje total | E9: =IF($E$3="NO",10,'Proceso Judicial'!E60) -> 5.5
D10: Clasificación | E10: =VLOOKUP(E9,Tabla_Puntaje[],2,1) -> Eventual
D11: Probabilidad de pérdida | E11: =IF($E$3="NO",0.01%,VLOOKUP($E$9,Tabla_Puntaje[],3,1)) -> 0.1098222885 | F11: =IF($E$3="NO",0.01%,VLOOKUP($E$9,Tabla_Puntaje[],4,1)) -> 0.180369408
D12: Reserva antes de última instancia | E12: =E2*E11 -> 61134279.01 | F12: =E2*F11 -> 100405426.5
D13: Fallo última instancia | E13: =IF(AND('Proceso Judicial'!$E$38="SÍ",'Proceso Judicial'!$E$45=TRUE),'Proceso Judicial'!$E$39,"ND") -> ND | F13: =IF(AND('Proceso Judicial'!$E$38="SÍ",'Proceso Judicial'!$E$45=TRUE),'Proceso Judicial'!$E$39,"ND") -> ND
D14: Conciliación aceptada | E14: =IF('Proceso Judicial'!$E$27="Responsabilidad_Fiscal","ND",IF('Proceso Judicial'!$E$41="SÍ",'Proceso Judicial'!$E$42,"ND")) -> ND | F14: =IF('Proceso Judicial'!$E$27="Responsabilidad_Fiscal","ND",IF('Proceso Judicial'!$E$41="SÍ",'Proceso Judicial'!$E$42,"ND")) -> ND
D15: Reserva del siniestro | E15: =IF(AND($E$13="ND",$E$14="ND"),$E$12,IF(AND($E$13<>"ND",$E$14<>"ND"),$E$13,IF($E$13="ND",$E$14,$E$13))) -> 61134279.01 | F15: =IF(AND($F$13="ND",$F$14="ND"),$F$12,IF(AND($F$13<>"ND",$F$14<>"ND"),$F$13,IF($F$13="ND",$F$14,$F$13))) -> 100405426.5
D16: Reserva de honorarios | E16: =IF('Proceso Judicial'!$E$49="SÍ",'Proceso Judicial'!$E$50*(1-'Proceso Judicial'!$E$51),0) -> 11133310 | F16: =IF('Proceso Judicial'!$E$49="SÍ",'Proceso Judicial'!$E$50*(1-'Proceso Judicial'!$E$51),0) -> 11133310
D17: Reserva Total | E17: =E15+E16 -> 72267589.01 | F17: =F15+F16 -> 111538736.5
A19: Identificación
D20: Ramo | E20: CUMPLIMIENTO
D21: ID del siniestro-póliza | E21: 20017
A23: Análisis del proceso judicial
D24: ¿Existe la cobertura reclamada? | E24: SÍ
D25: ¿El siniestro ocurrió dentro de la vigencia? | E25: SÍ
D27: Tipo de Proceso | E27: Proceso_Contractual
D28: Etapa del Proceso Judicial | E28: Presentación demanda - contestación
D29: Jurisdicción | E29: VALLE DEL CAUCA
D31: ¿Existe incumplimiento del garantizado? | E31: NO
D32: Perfil del garantizado | E32: Normal
D33: Tipo de contragarantía | E33: No hay Contragarantía
D35: Valor PML en COP | E35: 556665499
D36: Valor Pretensión en COP | E36: 695316219
D38: ¿Existe sentencia, laudo arbitral, fallo fiscal o administrativo DESFAVORABLE para Seguros Confianza? | E38: NO
D39: Valor condena a Confianza
D41: ¿Se intentará llegar a un acuerdo con reclamante?
D42: Valor Conciliación en COP
D44: ¿Se concedió recurso de casación? | E44: NO
D45: Check última instancia | E45: =IF(ISNUMBER(SEARCH("CASACIÓN",$E$28)),TRUE,IF($E$44="NO",LEFT(E28,IFERROR(SEARCH(" - ",E28),1)-1)=VLOOKUP($E$27,Tabla_Procesos[],2,0),IF(ISNUMBER(SEARCH("CASACIÓN",$E$28)),TRUE,FALSE))) -> FALSE
A47: Reserva de Honorarios
B48: Honorarios
D49: ¿El proceso se tercerizó? | E49: SÍ
D50: Honorarios pactados en COP | E50: 11133310
D51: Porcentaje honorarios pagos
A53: Puntaje
D54: Incumplimiento | E54: =IF($E$27="Responsabilidad_Fiscal",_xlfn.XLOOKUP($E$31,Tabla_Incumplimiento_RespFiscal[Incumplimiento_RespFiscal],Tabla_Incumplimiento_RespFiscal[Puntaje Inicial]),_xlfn.XLOOKUP($E$31,Tabla_Incumplimiento[Incumplimiento],Tabla_Incumplimiento[Puntaje Inicial])) -> 5
D55: Tipo de proceso | E55: =VLOOKUP($E$27,Tabla_Procesos[],IF($E$27="Responsabilidad_Fiscal",VLOOKUP($E$31,Tabla_Columnas_RespFisc,2,0)-1,VLOOKUP($E$31,Tabla_Columnas[],2,0))+1,0) -> -1
D56: Etapa del proceso | E56: =VLOOKUP($E$28,OFFSET(INDIRECT($E$27),0,0,,6),IF($E$27="Responsabilidad_Fiscal",VLOOKUP($E$31,Tabla_Columnas_RespFisc,2,0),VLOOKUP($E$31,Tabla_Columnas[],2,0)),0) -> 2
D57: Territorialidad | E57: =IF($E$27="Responsabilidad_Fiscal",0,VLOOKUP($E$29,Tabla_territorialidad[],VLOOKUP($E$31,Tabla_Columnas[],2,0),0)) -> -0.5
D58: Perfil garantizado | E58: =_xlfn.XLOOKUP($E$32,Perfil_afianzado,Tabla_perfil_afianzado[Puntaje]) -> 0
D59: Contragarantía | E59: =_xlfn.XLOOKUP($E$33,Contragarantía,Tabla_contragarantía[Puntaje]) -> 0
D60: TOTAL | E60: =MIN(10,MAX(0,SUM(E54:E59))) -> 5.5
A62: Fechas
D63: Fecha Ocurrencia Siniestro | F63: =+E64-E63 -> 0 | I63: y | J63: =D64 -> Fecha Aviso Siniestro
D64: Fecha Aviso Siniestro | F64: =+E65-E64 -> 0 | I64: y | J64: =D65 -> Fecha Apertura Reserva
D65: Fecha Apertura Reserva | F65: =E66-E64 -> 0 | I65: y | J65: =D66 -> Fecha de Notificación del Proceso
D66: Fecha de Notificación del Proceso | F66: =+E74-E66 -> 0 | I66: y | J66: =$D$66 -> Fecha de Notificación del Proceso
A68: Otros campos póliza
D69: ¿Se ha realizado pagos parciales? | E69: SÍ
D70: Valor Pago Parcial en COP
D71: Método de distribución | E71: Automático
D73: ¿Aplica el calculo de intereses? | E73: NO
D74: Fecha de Inicio de Causación de Intereses | F74: =IF($E$73="NO",0,MAX(0,DATEDIF(E74,E75,"m")-1)) -> 0
D75: Fecha Final para Causación de Intereses

Sheet Información Pólizas (hidden)
B1: Reserva de siniestros | C1: =SUM(Tabla_Pólizas[RESERVA DEL SINIESTRO]) -> 
B2: Reserva de honorarios | C2: =SUM(Tabla_Pólizas[RESERVA DE HONORARIOS]) -> 
B3: Reserva de gastos direct. | C3: =SUM(Tabla_Pólizas[RESERVA DE GASTOS DIRECTOS]) -> 0
B4: Reserva de gastos indirect. | C4: =SUM(Tabla_Pólizas[RESERVA DE GASTOS INDIRECTOS]) -> 0
B5: RESERVA TOTAL | C5: =SUM(C1:C4) -> 
V6: =SUM(Tabla_Pólizas[Porcentaje de distribución de honorarios]) -> 0.5 | W6: =SUM(Tabla_Pólizas[Porcentaje de distribución del pago parcial]) -> 0 | AN6: PML | AT6: % PÉRDIDA | AZ6: RSA SINIESTRO
A7: NOMBRE ITEM > | B7: Nombre de Tomador | C7: Nombre de Asegurado | D7: Número de Póliza | E7: Número de siniestro | F7: Inicio de vigencia | G7: Fin de vigencia | H7: Ramo SFC | I7: Cobertura | J7: Unid Vlr Asegurado | K7: Vlr Asegurado | L7: SMLMV Fecha Ocurrencia Siniestro | M7: Unid Sublímite | N7: Valor Sublímite | O7: % Coaseguro de Confianza | P7: Unid Deducible | Q7: Deducible | R7: Unid de ejecución del contrato o inversión del anticipo | S7: Ejecución del contrato y/o inversión del anticipo | T7: Unid Conciliación | U7: Valor Conciliación | V7: Porcentaje de distribución de honorarios | W7: Porcentaje de distribución del pago parcial | X7: ¿Existe la cobertura reclamada? | Y7: ¿El siniestro ocurrió dentro de la vigencia? | Z7: ¿Hay preescripción en este contrato de seguro? | AA7: Hay Culpabilidad | AB7: Hay Incumplimiento | AC7: Llave | AD7: CUMPLE CRITERIOS DE RECLAMACIÓN | AE7: DISTRIBUCIÓN PRETENSIÓN OTRAS COBERTURAS | AF7: VALOR ASEGURADO PESOS | AG7: VALOR SIN EJECUTAR | AH7: PRETENSIÓN PESOS | AI7: VALOR SUBLÍMITE PESOS | AJ7: VALOR SIN DEDUCIBLE | AK7: VALOR DEDUCIBLE | AL7: VALOR MÁX PARÁMETROS PÓLIZA | AM7: INTERESES | AN7: PÉRDIDA MÁXIMA PROBABLE | AO7: PUNTAJE CULPABILIDAD | AP7: PUNTAJE INCUMPLIMIENTO | AQ7: PUNTAJE ETAPA DEL PROCESO | AR7: PUNTAJE TERRITORIALIDAD | AS7: PUNTAJE TOTAL | AT7: PROBABILIDAD DE PÉRDIDA | AU7: RESERVA BRUTA PRELIMINAR DEL SINIESTRO | AV7: PAGOS PARCIALES | AW7: RESERVA PRELIMINAR DEL SINIESTRO | AX7: VALOR CONCILIACIÓN PESOS | AY7: VALOR SENTENCIA PESOS | AZ7: RESERVA DEL SINIESTRO | BA7: RESERVA DE HONORARIOS | BB7: RESERVA DE GASTOS DIRECTOS | BC7: RESERVA DE GASTOS INDIRECTOS | BD7: RESERVA TOTAL | BH7: RAMO SFC | BM7: COBERTURA
D8: 06GU010878 | E8: 11687 | H8: CUMPLIMIENTO | I8: CUMPLIMIENTO | J8: COP | K8: 27000000000 | L8: 689455 | O8: 1 | P8: % | Q8: 10 | R8: % | S8: 0 | T8: COP | U8: 0 | V8: 0.5 | X8: SÍ | Y8: SÍ | Z8: NO | AA8: NO | AB8: Neutral | AC8: =Tabla_Pólizas[[#This Row],[Ramo SFC]]&"-"&Tabla_Pólizas[[#This Row],[Cobertura]] -> CUMPLIMIENTO-CUMPLIMIENTO | AD8: =IF(AND(Tabla_Pólizas[[#This Row],[¿Existe la cobertura reclamada?]]="SÍ",Tabla_Pólizas[[#This Row],[¿El siniestro ocurrió dentro de la vigencia?]]="SÍ",Tabla_Pólizas[[#This Row],[¿Hay preescripción en este contrato de seguro?]]="NO"),"SÍ","NO") -> SÍ | AE8: =IF(COUNTA(Tabla_Pólizas[CUMPLE CRITERIOS DE RECLAMACIÓN])=COUNTIF(Tabla_Pólizas[CUMPLE CRITERIOS DE RECLAMACIÓN],"NO"),Tabla_Pólizas[[#This Row],[VALOR ASEGURADO PESOS]]/SUM(Tabla_Pólizas[VALOR ASEGURADO PESOS]),IF(Tabla_Pólizas[[#This Row],[CUMPLE CRITERIOS DE RECLAMACIÓN]]="NO",0.5%,(1-(COUNTIF(Tabla_Pólizas[CUMPLE CRITERIOS DE RECLAMACIÓN],"NO")*0.5%))*(Tabla_Pólizas[[#This Row],[VALOR ASEGURADO PESOS]]/SUMIF(Tabla_Pólizas[CUMPLE CRITERIOS DE RECLAMACIÓN],"SÍ",Tabla_Pólizas[VALOR ASEGURADO PESOS])))) -> 1 | AF8: =IF(Tabla_Pólizas[[#This Row],[Unid Vlr Asegurado]]="COP",Tabla_Pólizas[[#This Row],[Vlr Asegurado]],IF(Tabla_Pólizas[[#This Row],[Unid Vlr Asegurado]]="USD",Tabla_Pólizas[[#This Row],[Vlr Asegurado]]*'Proceso Judicial'!#REF!,Tabla_Pólizas[[#This Row],[Vlr Asegurado]]*Tabla_Pólizas[[#This Row],[SMLMV Fecha Ocurrencia Siniestro]])) -> 27000000000 | AG8: =IF(OR(ISNUMBER(SEARCH("cumplimiento",Tabla_Pólizas[[#This Row],[Ramo SFC]])),ISNUMBER(SEARCH("anticipo",Tabla_Pólizas[[#This Row],[Cobertura]]))),IF(Tabla_Pólizas[[#This Row],[Unid de ejecución del contrato o inversión del anticipo]]="%",Tabla_Pólizas[[#This Row],[VALOR ASEGURADO PESOS]]*(1-(Tabla_Pólizas[[#This Row],[Ejecución del contrato y/o inversión del anticipo]]/100)),Tabla_Pólizas[[#This Row],[VALOR ASEGURADO PESOS]]-Tabla_Pólizas[[#This Row],[Ejecución del contrato y/o inversión del anticipo]]),"ND") -> 27000000000 | AH8: =IF('Proceso Judicial'!$E$36=0,"ND",'Proceso Judicial'!#REF!*Tabla_Pólizas[[#This Row],[DISTRIBUCIÓN PRETENSIÓN OTRAS COBERTURAS]]) ->  | AI8: =IF(ISNUMBER(SEARCH("cumplimiento",Tabla_Pólizas[[#This Row],[Ramo SFC]])),"ND",IF(Tabla_Pólizas[[#This Row],[Valor Sublímite ]]=0,"ND",IF(Tabla_Pólizas[[#This Row],[Unid Sublímite]]="COP",Tabla_Pólizas[[#This Row],[Valor Sublímite ]],IF(Tabla_Pólizas[[#This Row],[Unid Sublímite]]="%",Tabla_Pólizas[[#This Row],[VALOR ASEGURADO PESOS]]*Tabla_Pólizas[[#This Row],[Valor Sublímite ]]/100,Tabla_Pólizas[[#This Row],[Valor Sublímite ]]*Tabla_Pólizas[[#This Row],[SMLMV Fecha Ocurrencia Siniestro]])))) -> ND | AJ8: =IF(ISNUMBER(SEARCH("cumplimiento",Tabla_Pólizas[[#This Row],[Ramo SFC]])),MIN(Tabla_Pólizas[[#This Row],[VALOR ASEGURADO PESOS]:[PRETENSIÓN PESOS]]),MIN(Tabla_Pólizas[[#This Row],[VALOR ASEGURADO PESOS]:[VALOR SUBLÍMITE PESOS]]))*Tabla_Pólizas[[#This Row],[% Coaseguro de Confianza]] ->  | AK8: =IF(ISNUMBER(SEARCH("cumplimiento",Tabla_Pólizas[[#This Row],[Ramo SFC]])),0,IF(Tabla_Pólizas[[#This Row],[Deducible]]=0,0,IF(Tabla_Pólizas[[#This Row],[Unid Deducible]]="COP",Tabla_Pólizas[[#This Row],[Deducible]],IF(Tabla_Pólizas[[#This Row],[Unid Deducible]]="SMMLV",Tabla_Pólizas[[#This Row],[Deducible]]*Tabla_Pólizas[[#This Row],[SMLMV Fecha Ocurrencia Siniestro]],Tabla_Pólizas[[#This Row],[VALOR SIN DEDUCIBLE]]*Tabla_Pólizas[[#This Row],[Deducible]]/100)))) -> 0 | AL8: =MAX(Tabla_Pólizas[[#This Row],[VALOR SIN DEDUCIBLE]]-Tabla_Pólizas[[#This Row],[VALOR DEDUCIBLE]],Tabla_Pólizas[[#This Row],[VALOR SIN DEDUCIBLE]]*1.5%) ->  | AM8: =IF('Proceso Judicial'!$E$73="NO",0,(Tabla_Pólizas[[#This Row],[VALOR MÁX PARÁMETROS PÓLIZA]]*(1+(_xlfn.XLOOKUP('Proceso Judicial'!$E$74,Intereses[Hasta],Intereses[TIB corriente (%EM)],,-1)))^'Proceso Judicial'!$F$74)-Tabla_Pólizas[[#This Row],[VALOR MÁX PARÁMETROS PÓLIZA]]) -> 0 | AN8: =IF(AND(Tabla_Pólizas[[#This Row],[¿Existe la cobertura reclamada?]]="SÍ",Tabla_Pólizas[[#This Row],[¿El siniestro ocurrió dentro de la vigencia?]]="SÍ",Tabla_Pólizas[[#This Row],[¿Hay preescripción en este contrato de seguro?]]="NO"),MAX(Tabla_Pólizas[[#This Row],[VALOR MÁX PARÁMETROS PÓLIZA]]+Tabla_Pólizas[[#This Row],[INTERESES]],'Proceso Judicial'!#REF!),MAX((Tabla_Pólizas[[#This Row],[VALOR MÁX PARÁMETROS PÓLIZA]]+Tabla_Pólizas[[#This Row],[INTERESES]])*1.5%,'Proceso Judicial'!#REF!)) ->  | AO8: =IF(ISNUMBER(SEARCH("cumplimiento",Tabla_Pólizas[[#This Row],[Ramo SFC]])),"ND",VLOOKUP(Tabla_Pólizas[[#This Row],[Hay Culpabilidad]],#REF!,2,0)) -> ND | AP8: =IF(ISNUMBER(SEARCH("cumplimiento",Tabla_Pólizas[[#This Row],[Ramo SFC]])),VLOOKUP(Tabla_Pólizas[[#This Row],[Hay Incumplimiento]],Tabla_Incumplimiento[],2,0),"ND") -> 3 | AQ8: =VLOOKUP('Proceso Judicial'!$E$28,OFFSET(INDIRECT('Proceso Judicial'!$E$27),0,0,,6),VLOOKUP(IF(Tabla_Pólizas[[#This Row],[Ramo SFC]]="Cumplimiento",Tabla_Pólizas[[#This Row],[Hay Incumplimiento]],Tabla_Pólizas[[#This Row],[Hay Culpabilidad]]),Tabla_Columnas[],2,0),0) -> 1.2 | AR8: =VLOOKUP('Proceso Judicial'!$E$29,Tabla_territorialidad[],VLOOKUP(IF(ISNUMBER(SEARCH("cumplimiento",Tabla_Pólizas[[#This Row],[Ramo SFC]])),Tabla_Pólizas[[#This Row],[Hay Incumplimiento]],Tabla_Pólizas[[#This Row],[Hay Culpabilidad]]),Tabla_Columnas[],2,0),0) -> -0.25 | AS8: =MIN(MAX(SUM(Tabla_Pólizas[[#This Row],[PUNTAJE CULPABILIDAD]:[PUNTAJE TERRITORIALIDAD]]),0),10) -> 3.95 | AT8: =VLOOKUP(Tabla_Pólizas[[#This Row],[PUNTAJE TOTAL]],Tabla_Puntaje[],3,1) -> 0.2951518448 | AU8: =Tabla_Pólizas[[#This Row],[PÉRDIDA MÁXIMA PROBABLE]]*Tabla_Pólizas[[#This Row],[PROBABILIDAD DE PÉRDIDA]] ->  | AV8: =IF('Proceso Judicial'!$E$69="NO",0,'Proceso Judicial'!$E$70)*IF('Proceso Judicial'!$E$71="Automático",(Tabla_Pólizas[[#This Row],[RESERVA BRUTA PRELIMINAR DEL SINIESTRO]]/SUM(Tabla_Pólizas[RESERVA BRUTA PRELIMINAR DEL SINIESTRO])),Tabla_Pólizas[[#This Row],[Porcentaje de distribución del pago parcial]]) ->  | AW8: =Tabla_Pólizas[[#This Row],[RESERVA BRUTA PRELIMINAR DEL SINIESTRO]]-Tabla_Pólizas[[#This Row],[PAGOS PARCIALES]] ->  | AX8: =IF(OR(Tabla_Pólizas[[#This Row],[Valor Conciliación]]=0,NOT(ISNUMBER(Tabla_Pólizas[[#This Row],[Valor Conciliación]]))),"ND",IF(Tabla_Pólizas[[#This Row],[Unid Conciliación]]="COP",Tabla_Pólizas[[#This Row],[Valor Conciliación]],Tabla_Pólizas[[#This Row],[Valor Conciliación]]*Tabla_Pólizas[[#This Row],[SMLMV Fecha Ocurrencia Siniestro]])) -> ND | AY8: =IF('Proceso Judicial'!$E$38="NO","ND",(Tabla_Pólizas[[#This Row],[RESERVA BRUTA PRELIMINAR DEL SINIESTRO]]/SUM(Tabla_Pólizas[RESERVA BRUTA PRELIMINAR DEL SINIESTRO]))*'Proceso Judicial'!#REF!) -> ND | AZ8: =IF('Proceso Judicial'!$E$45=TRUE,Tabla_Pólizas[[#This Row],[VALOR SENTENCIA PESOS]],MAX(Tabla_Pólizas[[#This Row],[RESERVA PRELIMINAR DEL SINIESTRO]:[VALOR SENTENCIA PESOS]])) ->  | BA8: =IF('Proceso Judicial'!$E$49="NO",_xlfn.XLOOKUP(Tabla_Pólizas[[#This Row],[Llave]],Estructura[LLAVE],Estructura[HONORARIOS],"ND"),'Proceso Judicial'!#REF!*IF('Proceso Judicial'!#REF!="Automático",(Tabla_Pólizas[[#This Row],[RESERVA DEL SINIESTRO]]/SUM(Tabla_Pólizas[RESERVA DEL SINIESTRO])),Tabla_Pólizas[[#This Row],[Porcentaje de distribución de honorarios]])) ->  | BB8: =_xlfn.XLOOKUP(Tabla_Pólizas[[#This Row],[Llave]],Estructura[LLAVE],Estructura[GASTOS DIRECTOS],"ND") -> 0 | BC8: =_xlfn.XLOOKUP(Tabla_Pólizas[[#This Row],[Llave]],Estructura[LLAVE],Estructura[GASTOS INDIRECTOS],"ND") -> 0 | BD8: =SUM(Tabla_Pólizas[[#This Row],[RESERVA DEL SINIESTRO]:[RESERVA DE GASTOS INDIRECTOS]]) ->  | BH8: =TRANSPOSE(_xlfn.UNIQUE(Estructura[RAMO SFC],FALSE,FALSE)) -> CUMPLIMIENTO | BI8: RESPONSABILIDAD CIVIL | BM8: =TRANSPOSE(_xlfn.UNIQUE(_xlfn._xlws.FILTER(Estructura[COBERTURA],(Estructura[RAMO SFC]=Tabla_Pólizas[[#This Row],[Ramo SFC]])),FALSE,FALSE)) -> ANTICIPO | BN8: ART. 513 | BO8: ART. 599 | BP8: CALIDAD | BQ8: CALIDAD DE SERVICIO | BR8: CALIDAD DE SUMINISTRO | BS8: CAUCION JUDICIAL | BT8: CONTRATISTAS Y SUBCONTRATISTAS | BU8: CUMPLIMIENTO | BV8: DISPOSICIONES LEGALES | BW8: ESTABILIDAD DE LA OBRA | BX8: OTRAS | BY8: PLO | BZ8: SALARIOS Y PRESTACIONES | CA8: SERIEDAD DE LA OFERTA
BH9: =TRANSPOSE(_xlfn.UNIQUE(Estructura[RAMO SFC],FALSE,FALSE)) -> CUMPLIMIENTO | BI9: RESPONSABILIDAD CIVIL | BM9: =TRANSPOSE(_xlfn.UNIQUE(_xlfn._xlws.FILTER(Estructura[COBERTURA],(Estructura[RAMO SFC]=Tabla_Pólizas[[#This Row],[Ramo SFC]])),FALSE,FALSE)) -> 
BH10: =TRANSPOSE(_xlfn.UNIQUE(Estructura[RAMO SFC],FALSE,FALSE)) -> CUMPLIMIENTO | BI10: RESPONSABILIDAD CIVIL | BM10: =TRANSPOSE(_xlfn.UNIQUE(_xlfn._xlws.FILTER(Estructura[COBERTURA],(Estructura[RAMO SFC]=Tabla_Pólizas[[#This Row],[Ramo SFC]])),FALSE,FALSE)) -> 
BH11: =TRANSPOSE(_xlfn.UNIQUE(Estructura[RAMO SFC],FALSE,FALSE)) -> CUMPLIMIENTO | BI11: RESPONSABILIDAD CIVIL | BM11: =TRANSPOSE(_xlfn.UNIQUE(_xlfn._xlws.FILTER(Estructura[COBERTURA],(Estructura[RAMO SFC]=Tabla_Pólizas[[#This Row],[Ramo SFC]])),FALSE,FALSE)) -> 
BH12: =TRANSPOSE(_xlfn.UNIQUE(Estructura[RAMO SFC],FALSE,FALSE)) -> CUMPLIMIENTO | BI12: RESPONSABILIDAD CIVIL | BM12: =TRANSPOSE(_xlfn.UNIQUE(_xlfn._xlws.FILTER(Estructura[COBERTURA],(Estructura[RAMO SFC]=Tabla_Pólizas[[#This Row],[Ramo SFC]])),FALSE,FALSE)) -> 
BH13: =TRANSPOSE(_xlfn.UNIQUE(Estructura[RAMO SFC],FALSE,FALSE)) -> CUMPLIMIENTO | BI13: RESPONSABILIDAD CIVIL | BM13: =TRANSPOSE(_xlfn.UNIQUE(_xlfn._xlws.FILTER(Estructura[COBERTURA],(Estructura[RAMO SFC]=Tabla_Pólizas[[#This Row],[Ramo SFC]])),FALSE,FALSE)) -> 
E14: SEPARAR RAMOS | BH14: =TRANSPOSE(_xlfn.UNIQUE(Estructura[RAMO SFC],FALSE,FALSE)) -> CUMPLIMIENTO | BI14: RESPONSABILIDAD CIVIL | BM14: =TRANSPOSE(_xlfn.UNIQUE(_xlfn._xlws.FILTER(Estructura[COBERTURA],(Estructura[RAMO SFC]=Tabla_Pólizas[[#This Row],[Ramo SFC]])),FALSE,FALSE)) -> 
E15: CARATULA SENCILLA | BH15: =TRANSPOSE(_xlfn.UNIQUE(Estructura[RAMO SFC],FALSE,FALSE)) -> CUMPLIMIENTO | BI15: RESPONSABILIDAD CIVIL | BM15: =TRANSPOSE(_xlfn.UNIQUE(_xlfn._xlws.FILTER(Estructura[COBERTURA],(Estructura[RAMO SFC]=Tabla_Pólizas[[#This Row],[Ramo SFC]])),FALSE,FALSE)) -> 
E16: ID DE SINIESTRO-PÓLIZA | BH16: =TRANSPOSE(_xlfn.UNIQUE(Estructura[RAMO SFC],FALSE,FALSE)) -> CUMPLIMIENTO | BI16: RESPONSABILIDAD CIVIL | BM16: =TRANSPOSE(_xlfn.UNIQUE(_xlfn._xlws.FILTER(Estructura[COBERTURA],(Estructura[RAMO SFC]=Tabla_Pólizas[[#This Row],[Ramo SFC]])),FALSE,FALSE)) -> 
E17: PML DILIGENCIABLE | BH17: =TRANSPOSE(_xlfn.UNIQUE(Estructura[RAMO SFC],FALSE,FALSE)) -> CUMPLIMIENTO | BI17: RESPONSABILIDAD CIVIL | BM17: =TRANSPOSE(_xlfn.UNIQUE(_xlfn._xlws.FILTER(Estructura[COBERTURA],(Estructura[RAMO SFC]=Tabla_Pólizas[[#This Row],[Ramo SFC]])),FALSE,FALSE)) -> 
E18: OCULTAR INFORMACIÓN QUE NO SEA NECESARIA EN EL MOMENTO | BH18: =TRANSPOSE(_xlfn.UNIQUE(Estructura[RAMO SFC],FALSE,FALSE)) -> CUMPLIMIENTO | BI18: RESPONSABILIDAD CIVIL | BM18: =TRANSPOSE(_xlfn.UNIQUE(_xlfn._xlws.FILTER(Estructura[COBERTURA],(Estructura[RAMO SFC]=Tabla_Pólizas[[#This Row],[Ramo SFC]])),FALSE,FALSE)) -> 
E19: ENVIAR TABLAS CON PUNTAJES: | BH19: =TRANSPOSE(_xlfn.UNIQUE(Estructura[RAMO SFC],FALSE,FALSE)) -> CUMPLIMIENTO | BI19: RESPONSABILIDAD CIVIL | BM19: =TRANSPOSE(_xlfn.UNIQUE(_xlfn._xlws.FILTER(Estructura[COBERTURA],(Estructura[RAMO SFC]=Tabla_Pólizas[[#This Row],[Ramo SFC]])),FALSE,FALSE)) -> 
E20: SEPARAR JURISDICCIÓN ORDINARIA: CIVIL & LABORAL | BH20: =TRANSPOSE(_xlfn.UNIQUE(Estructura[RAMO SFC],FALSE,FALSE)) -> CUMPLIMIENTO | BI20: RESPONSABILIDAD CIVIL | BM20: =TRANSPOSE(_xlfn.UNIQUE(_xlfn._xlws.FILTER(Estructura[COBERTURA],(Estructura[RAMO SFC]=Tabla_Pólizas[[#This Row],[Ramo SFC]])),FALSE,FALSE)) -> 
E21: SOLVENCIA DE CLIENTES CUMPLIMIENTO | BH21: =TRANSPOSE(_xlfn.UNIQUE(Estructura[RAMO SFC],FALSE,FALSE)) -> CUMPLIMIENTO | BI21: RESPONSABILIDAD CIVIL | BM21: =TRANSPOSE(_xlfn.UNIQUE(_xlfn._xlws.FILTER(Estructura[COBERTURA],(Estructura[RAMO SFC]=Tabla_Pólizas[[#This Row],[Ramo SFC]])),FALSE,FALSE)) -> 
E22: CONTRAGARANTÍA CUMPLIMIENTO | BH22: =TRANSPOSE(_xlfn.UNIQUE(Estructura[RAMO SFC],FALSE,FALSE)) -> CUMPLIMIENTO | BI22: RESPONSABILIDAD CIVIL | BM22: =TRANSPOSE(_xlfn.UNIQUE(_xlfn._xlws.FILTER(Estructura[COBERTURA],(Estructura[RAMO SFC]=Tabla_Pólizas[[#This Row],[Ramo SFC]])),FALSE,FALSE)) -> 
BH23: =TRANSPOSE(_xlfn.UNIQUE(Estructura[RAMO SFC],FALSE,FALSE)) -> CUMPLIMIENTO | BI23: RESPONSABILIDAD CIVIL | BM23: =TRANSPOSE(_xlfn.UNIQUE(_xlfn._xlws.FILTER(Estructura[COBERTURA],(Estructura[RAMO SFC]=Tabla_Pólizas[[#This Row],[Ramo SFC]])),FALSE,FALSE)) -> 
BH24: =TRANSPOSE(_xlfn.UNIQUE(Estructura[RAMO SFC],FALSE,FALSE)) -> CUMPLIMIENTO | BI24: RESPONSABILIDAD CIVIL | BM24: =TRANSPOSE(_xlfn.UNIQUE(_xlfn._xlws.FILTER(Estructura[COBERTURA],(Estructura[RAMO SFC]=Tabla_Pólizas[[#This Row],[Ramo SFC]])),FALSE,FALSE)) -> 
BH25: =TRANSPOSE(_xlfn.UNIQUE(Estructura[RAMO SFC],FALSE,FALSE)) -> CUMPLIMIENTO | BI25: RESPONSABILIDAD CIVIL | BM25: =TRANSPOSE(_xlfn.UNIQUE(_xlfn._xlws.FILTER(Estructura[COBERTURA],(Estructura[RAMO SFC]=Tabla_Pólizas[[#This Row],[Ramo SFC]])),FALSE,FALSE)) -> 
BH26: =TRANSPOSE(_xlfn.UNIQUE(Estructura[RAMO SFC],FALSE,FALSE)) -> CUMPLIMIENTO | BI26: RESPONSABILIDAD CIVIL | BM26: =TRANSPOSE(_xlfn.UNIQUE(_xlfn._xlws.FILTER(Estructura[COBERTURA],(Estructura[RAMO SFC]=Tabla_Pólizas[[#This Row],[Ramo SFC]])),FALSE,FALSE)) -> 
BH27: =TRANSPOSE(_xlfn.UNIQUE(Estructura[RAMO SFC],FALSE,FALSE)) -> CUMPLIMIENTO | BI27: RESPONSABILIDAD CIVIL | BM27: =TRANSPOSE(_xlfn.UNIQUE(_xlfn._xlws.FILTER(Estructura[COBERTURA],(Estructura[RAMO SFC]=Tabla_Pólizas[[#This Row],[Ramo SFC]])),FALSE,FALSE)) -> 
BH28: =TRANSPOSE(_xlfn.UNIQUE(Estructura[RAMO SFC],FALSE,FALSE)) -> CUMPLIMIENTO | BI28: RESPONSABILIDAD CIVIL | BM28: =TRANSPOSE(_xlfn.UNIQUE(_xlfn._xlws.FILTER(Estructura[COBERTURA],(Estructura[RAMO SFC]=Tabla_Pólizas[[#This Row],[Ramo SFC]])),FALSE,FALSE)) -> 
BH29: =TRANSPOSE(_xlfn.UNIQUE(Estructura[RAMO SFC],FALSE,FALSE)) -> CUMPLIMIENTO | BI29: RESPONSABILIDAD CIVIL | BM29: =TRANSPOSE(_xlfn.UNIQUE(_xlfn._xlws.FILTER(Estructura[COBERTURA],(Estructura[RAMO SFC]=Tabla_Pólizas[[#This Row],[Ramo SFC]])),FALSE,FALSE)) -> 
BH30: =TRANSPOSE(_xlfn.UNIQUE(Estructura[RAMO SFC],FALSE,FALSE)) -> CUMPLIMIENTO | BI30: RESPONSABILIDAD CIVIL | BM30: =TRANSPOSE(_xlfn.UNIQUE(_xlfn._xlws.FILTER(Estructura[COBERTURA],(Estructura[RAMO SFC]=Tabla_Pólizas[[#This Row],[Ramo SFC]])),FALSE,FALSE)) -> 
BH31: =TRANSPOSE(_xlfn.UNIQUE(Estructura[RAMO SFC],FALSE,FALSE)) -> CUMPLIMIENTO | BI31: RESPONSABILIDAD CIVIL | BM31: =TRANSPOSE(_xlfn.UNIQUE(_xlfn._xlws.FILTER(Estructura[COBERTURA],(Estructura[RAMO SFC]=Tabla_Pólizas[[#This Row],[Ramo SFC]])),FALSE,FALSE)) -> 
BH32: =TRANSPOSE(_xlfn.UNIQUE(Estructura[RAMO SFC],FALSE,FALSE)) -> CUMPLIMIENTO | BI32: RESPONSABILIDAD CIVIL | BM32: =TRANSPOSE(_xlfn.UNIQUE(_xlfn._xlws.FILTER(Estructura[COBERTURA],(Estructura[RAMO SFC]=Tabla_Pólizas[[#This Row],[Ramo SFC]])),FALSE,FALSE)) -> 
BH33: =TRANSPOSE(_xlfn.UNIQUE(Estructura[RAMO SFC],FALSE,FALSE)) -> CUMPLIMIENTO | BI33: RESPONSABILIDAD CIVIL | BM33: =TRANSPOSE(_xlfn.UNIQUE(_xlfn._xlws.FILTER(Estructura[COBERTURA],(Estructura[RAMO SFC]=Tabla_Pólizas[[#This Row],[Ramo SFC]])),FALSE,FALSE)) -> 
BH34: =TRANSPOSE(_xlfn.UNIQUE(Estructura[RAMO SFC],FALSE,FALSE)) -> CUMPLIMIENTO | BI34: RESPONSABILIDAD CIVIL | BM34: =TRANSPOSE(_xlfn.UNIQUE(_xlfn._xlws.FILTER(Estructura[COBERTURA],(Estructura[RAMO SFC]=Tabla_Pólizas[[#This Row],[Ramo SFC]])),FALSE,FALSE)) -> 
BH35: =TRANSPOSE(_xlfn.UNIQUE(Estructura[RAMO SFC],FALSE,FALSE)) -> CUMPLIMIENTO | BI35: RESPONSABILIDAD CIVIL | BM35: =TRANSPOSE(_xlfn.UNIQUE(_xlfn._xlws.FILTER(Estructura[COBERTURA],(Estructura[RAMO SFC]=Tabla_Pólizas[[#This Row],[Ramo SFC]])),FALSE,FALSE)) -> 
BH36: =TRANSPOSE(_xlfn.UNIQUE(Estructura[RAMO SFC],FALSE,FALSE)) -> CUMPLIMIENTO | BI36: RESPONSABILIDAD CIVIL | BM36: =TRANSPOSE(_xlfn.UNIQUE(_xlfn._xlws.FILTER(Estructura[COBERTURA],(Estructura[RAMO SFC]=Tabla_Pólizas[[#This Row],[Ramo SFC]])),FALSE,FALSE)) -> 
BH37: =TRANSPOSE(_xlfn.UNIQUE(Estructura[RAMO SFC],FALSE,FALSE)) -> CUMPLIMIENTO | BI37: RESPONSABILIDAD CIVIL | BM37: =TRANSPOSE(_xlfn.UNIQUE(_xlfn._xlws.FILTER(Estructura[COBERTURA],(Estructura[RAMO SFC]=Tabla_Pólizas[[#This Row],[Ramo SFC]])),FALSE,FALSE)) -> 
BH38: =TRANSPOSE(_xlfn.UNIQUE(Estructura[RAMO SFC],FALSE,FALSE)) -> CUMPLIMIENTO | BI38: RESPONSABILIDAD CIVIL | BM38: =TRANSPOSE(_xlfn.UNIQUE(_xlfn._xlws.FILTER(Estructura[COBERTURA],(Estructura[RAMO SFC]=Tabla_Pólizas[[#This Row],[Ramo SFC]])),FALSE,FALSE)) -> 
BH39: =TRANSPOSE(_xlfn.UNIQUE(Estructura[RAMO SFC],FALSE,FALSE)) -> CUMPLIMIENTO | BI39: RESPONSABILIDAD CIVIL | BM39: =TRANSPOSE(_xlfn.UNIQUE(_xlfn._xlws.FILTER(Estructura[COBERTURA],(Estructura[RAMO SFC]=Tabla_Pólizas[[#This Row],[Ramo SFC]])),FALSE,FALSE)) -> 
BH40: =TRANSPOSE(_xlfn.UNIQUE(Estructura[RAMO SFC],FALSE,FALSE)) -> CUMPLIMIENTO | BI40: RESPONSABILIDAD CIVIL | BM40: =TRANSPOSE(_xlfn.UNIQUE(_xlfn._xlws.FILTER(Estructura[COBERTURA],(Estructura[RAMO SFC]=Tabla_Pólizas[[#This Row],[Ramo SFC]])),FALSE,FALSE)) -> 
BH41: =TRANSPOSE(_xlfn.UNIQUE(Estructura[RAMO SFC],FALSE,FALSE)) -> CUMPLIMIENTO | BI41: RESPONSABILIDAD CIVIL | BM41: =TRANSPOSE(_xlfn.UNIQUE(_xlfn._xlws.FILTER(Estructura[COBERTURA],(Estructura[RAMO SFC]=Tabla_Pólizas[[#This Row],[Ramo SFC]])),FALSE,FALSE)) -> 
BH42: =TRANSPOSE(_xlfn.UNIQUE(Estructura[RAMO SFC],FALSE,FALSE)) -> CUMPLIMIENTO | BI42: RESPONSABILIDAD CIVIL | BM42: =TRANSPOSE(_xlfn.UNIQUE(_xlfn._xlws.FILTER(Estructura[COBERTURA],(Estructura[RAMO SFC]=Tabla_Pólizas[[#This Row],[Ramo SFC]])),FALSE,FALSE)) -> 
BH43: =TRANSPOSE(_xlfn.UNIQUE(Estructura[RAMO SFC],FALSE,FALSE)) -> CUMPLIMIENTO | BI43: RESPONSABILIDAD CIVIL | BM43: =TRANSPOSE(_xlfn.UNIQUE(_xlfn._xlws.FILTER(Estructura[COBERTURA],(Estructura[RAMO SFC]=Tabla_Pólizas[[#This Row],[Ramo SFC]])),FALSE,FALSE)) -> 
BH44: =TRANSPOSE(_xlfn.UNIQUE(Estructura[RAMO SFC],FALSE,FALSE)) -> CUMPLIMIENTO | BI44: RESPONSABILIDAD CIVIL | BM44: =TRANSPOSE(_xlfn.UNIQUE(_xlfn._xlws.FILTER(Estructura[COBERTURA],(Estructura[RAMO SFC]=Tabla_Pólizas[[#This Row],[Ramo SFC]])),FALSE,FALSE)) -> 
BH45: =TRANSPOSE(_xlfn.UNIQUE(Estructura[RAMO SFC],FALSE,FALSE)) -> CUMPLIMIENTO | BI45: RESPONSABILIDAD CIVIL | BM45: =TRANSPOSE(_xlfn.UNIQUE(_xlfn._xlws.FILTER(Estructura[COBERTURA],(Estructura[RAMO SFC]=Tabla_Pólizas[[#This Row],[Ramo SFC]])),FALSE,FALSE)) -> 
BH46: =TRANSPOSE(_xlfn.UNIQUE(Estructura[RAMO SFC],FALSE,FALSE)) -> CUMPLIMIENTO | BI46: RESPONSABILIDAD CIVIL | BM46: =TRANSPOSE(_xlfn.UNIQUE(_xlfn._xlws.FILTER(Estructura[COBERTURA],(Estructura[RAMO SFC]=Tabla_Pólizas[[#This Row],[Ramo SFC]])),FALSE,FALSE)) -> 
BH47: =TRANSPOSE(_xlfn.UNIQUE(Estructura[RAMO SFC],FALSE,FALSE)) -> CUMPLIMIENTO | BI47: RESPONSABILIDAD CIVIL | BM47: =TRANSPOSE(_xlfn.UNIQUE(_xlfn._xlws.FILTER(Estructura[COBERTURA],(Estructura[RAMO SFC]=Tabla_Pólizas[[#This Row],[Ramo SFC]])),FALSE,FALSE)) -> 
BH48: =TRANSPOSE(_xlfn.UNIQUE(Estructura[RAMO SFC],FALSE,FALSE)) -> CUMPLIMIENTO | BI48: RESPONSABILIDAD CIVIL | BM48: =TRANSPOSE(_xlfn.UNIQUE(_xlfn._xlws.FILTER(Estructura[COBERTURA],(Estructura[RAMO SFC]=Tabla_Pólizas[[#This Row],[Ramo SFC]])),FALSE,FALSE)) -> 
BH49: =TRANSPOSE(_xlfn.UNIQUE(Estructura[RAMO SFC],FALSE,FALSE)) -> CUMPLIMIENTO | BI49: RESPONSABILIDAD CIVIL | BM49: =TRANSPOSE(_xlfn.UNIQUE(_xlfn._xlws.FILTER(Estructura[COBERTURA],(Estructura[RAMO SFC]=Tabla_Pólizas[[#This Row],[Ramo SFC]])),FALSE,FALSE)) -> 
BH50: =TRANSPOSE(_xlfn.UNIQUE(Estructura[RAMO SFC],FALSE,FALSE)) -> CUMPLIMIENTO | BI50: RESPONSABILIDAD CIVIL | BM50: =TRANSPOSE(_xlfn.UNIQUE(_xlfn._xlws.FILTER(Estructura[COBERTURA],(Estructura[RAMO SFC]=Tabla_Pólizas[[#This Row],[Ramo SFC]])),FALSE,FALSE)) -> 
BH51: =TRANSPOSE(_xlfn.UNIQUE(Estructura[RAMO SFC],FALSE,FALSE)) -> CUMPLIMIENTO | BI51: RESPONSABILIDAD CIVIL | BM51: =TRANSPOSE(_xlfn.UNIQUE(_xlfn._xlws.FILTER(Estructura[COBERTURA],(Estructura[RAMO SFC]=Tabla_Pólizas[[#This Row],[Ramo SFC]])),FALSE,FALSE)) -> 
BH52: =TRANSPOSE(_xlfn.UNIQUE(Estructura[RAMO SFC],FALSE,FALSE)) -> CUMPLIMIENTO | BI52: RESPONSABILIDAD CIVIL | BM52: =TRANSPOSE(_xlfn.UNIQUE(_xlfn._xlws.FILTER(Estructura[COBERTURA],(Estructura[RAMO SFC]=Tabla_Pólizas[[#This Row],[Ramo SFC]])),FALSE,FALSE)) -> 
BH53: =TRANSPOSE(_xlfn.UNIQUE(Estructura[RAMO SFC],FALSE,FALSE)) -> CUMPLIMIENTO | BI53: RESPONSABILIDAD CIVIL | BM53: =TRANSPOSE(_xlfn.UNIQUE(_xlfn._xlws.FILTER(Estructura[COBERTURA],(Estructura[RAMO SFC]=Tabla_Pólizas[[#This Row],[Ramo SFC]])),FALSE,FALSE)) -> 
BH54: =TRANSPOSE(_xlfn.UNIQUE(Estructura[RAMO SFC],FALSE,FALSE)) -> CUMPLIMIENTO | BI54: RESPONSABILIDAD CIVIL | BM54: =TRANSPOSE(_xlfn.UNIQUE(_xlfn._xlws.FILTER(Estructura[COBERTURA],(Estructura[RAMO SFC]=Tabla_Pólizas[[#This Row],[Ramo SFC]])),FALSE,FALSE)) -> 
BH55: =TRANSPOSE(_xlfn.UNIQUE(Estructura[RAMO SFC],FALSE,FALSE)) -> CUMPLIMIENTO | BI55: RESPONSABILIDAD CIVIL | BM55: =TRANSPOSE(_xlfn.UNIQUE(_xlfn._xlws.FILTER(Estructura[COBERTURA],(Estructura[RAMO SFC]=Tabla_Pólizas[[#This Row],[Ramo SFC]])),FALSE,FALSE)) -> 
BH56: =TRANSPOSE(_xlfn.UNIQUE(Estructura[RAMO SFC],FALSE,FALSE)) -> CUMPLIMIENTO | BI56: RESPONSABILIDAD CIVIL | BM56: =TRANSPOSE(_xlfn.UNIQUE(_xlfn._xlws.FILTER(Estructura[COBERTURA],(Estructura[RAMO SFC]=Tabla_Pólizas[[#This Row],[Ramo SFC]])),FALSE,FALSE)) -> 
BH57: =TRANSPOSE(_xlfn.UNIQUE(Estructura[RAMO SFC],FALSE,FALSE)) -> CUMPLIMIENTO | BI57: RESPONSABILIDAD CIVIL | BM57: =TRANSPOSE(_xlfn.UNIQUE(_xlfn._xlws.FILTER(Estructura[COBERTURA],(Estructura[RAMO SFC]=Tabla_Pólizas[[#This Row],[Ramo SFC]])),FALSE,FALSE)) -> 
BH58: =TRANSPOSE(_xlfn.UNIQUE(Estructura[RAMO SFC],FALSE,FALSE)) -> CUMPLIMIENTO | BI58: RESPONSABILIDAD CIVIL | BM58: =TRANSPOSE(_xlfn.UNIQUE(_xlfn._xlws.FILTER(Estructura[COBERTURA],(Estructura[RAMO SFC]=Tabla_Pólizas[[#This Row],[Ramo SFC]])),FALSE,FALSE)) -> 
BH59: =TRANSPOSE(_xlfn.UNIQUE(Estructura[RAMO SFC],FALSE,FALSE)) -> CUMPLIMIENTO | BI59: RESPONSABILIDAD CIVIL | BM59: =TRANSPOSE(_xlfn.UNIQUE(_xlfn._xlws.FILTER(Estructura[COBERTURA],(Estructura[RAMO SFC]=Tabla_Pólizas[[#This Row],[Ramo SFC]])),FALSE,FALSE)) -> 
BH60: =TRANSPOSE(_xlfn.UNIQUE(Estructura[RAMO SFC],FALSE,FALSE)) -> CUMPLIMIENTO | BI60: RESPONSABILIDAD CIVIL | BM60: =TRANSPOSE(_xlfn.UNIQUE(_xlfn._xlws.FILTER(Estructura[COBERTURA],(Estructura[RAMO SFC]=Tabla_Pólizas[[#This Row],[Ramo SFC]])),FALSE,FALSE)) -> 
BH61: =TRANSPOSE(_xlfn.UNIQUE(Estructura[RAMO SFC],FALSE,FALSE)) -> CUMPLIMIENTO | BI61: RESPONSABILIDAD CIVIL | BM61: =TRANSPOSE(_xlfn.UNIQUE(_xlfn._xlws.FILTER(Estructura[COBERTURA],(Estructura[RAMO SFC]=Tabla_Pólizas[[#This Row],[Ramo SFC]])),FALSE,FALSE)) -> 
BH62: =TRANSPOSE(_xlfn.UNIQUE(Estructura[RAMO SFC],FALSE,FALSE)) -> CUMPLIMIENTO | BI62: RESPONSABILIDAD CIVIL | BM62: =TRANSPOSE(_xlfn.UNIQUE(_xlfn._xlws.FILTER(Estructura[COBERTURA],(Estructura[RAMO SFC]=Tabla_Pólizas[[#This Row],[Ramo SFC]])),FALSE,FALSE)) -> 
BH63: =TRANSPOSE(_xlfn.UNIQUE(Estructura[RAMO SFC],FALSE,FALSE)) -> CUMPLIMIENTO | BI63: RESPONSABILIDAD CIVIL | BM63: =TRANSPOSE(_xlfn.UNIQUE(_xlfn._xlws.FILTER(Estructura[COBERTURA],(Estructura[RAMO SFC]=Tabla_Pólizas[[#This Row],[Ramo SFC]])),FALSE,FALSE)) -> 
BH64: =TRANSPOSE(_xlfn.UNIQUE(Estructura[RAMO SFC],FALSE,FALSE)) -> CUMPLIMIENTO | BI64: RESPONSABILIDAD CIVIL | BM64: =TRANSPOSE(_xlfn.UNIQUE(_xlfn._xlws.FILTER(Estructura[COBERTURA],(Estructura[RAMO SFC]=Tabla_Pólizas[[#This Row],[Ramo SFC]])),FALSE,FALSE)) -> 
BH65: =TRANSPOSE(_xlfn.UNIQUE(Estructura[RAMO SFC],FALSE,FALSE)) -> CUMPLIMIENTO | BI65: RESPONSABILIDAD CIVIL | BM65: =TRANSPOSE(_xlfn.UNIQUE(_xlfn._xlws.FILTER(Estructura[COBERTURA],(Estructura[RAMO SFC]=Tabla_Pólizas[[#This Row],[Ramo SFC]])),FALSE,FALSE)) -> 
BH66: =TRANSPOSE(_xlfn.UNIQUE(Estructura[RAMO SFC],FALSE,FALSE)) -> CUMPLIMIENTO | BI66: RESPONSABILIDAD CIVIL | BM66: =TRANSPOSE(_xlfn.UNIQUE(_xlfn._xlws.FILTER(Estructura[COBERTURA],(Estructura[RAMO SFC]=Tabla_Pólizas[[#This Row],[Ramo SFC]])),FALSE,FALSE)) -> 
BH67: =TRANSPOSE(_xlfn.UNIQUE(Estructura[RAMO SFC],FALSE,FALSE)) -> CUMPLIMIENTO | BI67: RESPONSABILIDAD CIVIL | BM67: =TRANSPOSE(_xlfn.UNIQUE(_xlfn._xlws.FILTER(Estructura[COBERTURA],(Estructura[RAMO SFC]=Tabla_Pólizas[[#This Row],[Ramo SFC]])),FALSE,FALSE)) -> 
BH68: =TRANSPOSE(_xlfn.UNIQUE(Estructura[RAMO SFC],FALSE,FALSE)) -> CUMPLIMIENTO | BI68: RESPONSABILIDAD CIVIL | BM68: =TRANSPOSE(_xlfn.UNIQUE(_xlfn._xlws.FILTER(Estructura[COBERTURA],(Estructura[RAMO SFC]=Tabla_Pólizas[[#This Row],[Ramo SFC]])),FALSE,FALSE)) -> 
BH69: =TRANSPOSE(_xlfn.UNIQUE(Estructura[RAMO SFC],FALSE,FALSE)) -> CUMPLIMIENTO | BI69: RESPONSABILIDAD CIVIL | BM69: =TRANSPOSE(_xlfn.UNIQUE(_xlfn._xlws.FILTER(Estructura[COBERTURA],(Estructura[RAMO SFC]=Tabla_Pólizas[[#This Row],[Ramo SFC]])),FALSE,FALSE)) -> 
BH70: =TRANSPOSE(_xlfn.UNIQUE(Estructura[RAMO SFC],FALSE,FALSE)) -> CUMPLIMIENTO | BI70: RESPONSABILIDAD CIVIL | BM70: =TRANSPOSE(_xlfn.UNIQUE(_xlfn._xlws.FILTER(Estructura[COBERTURA],(Estructura[RAMO SFC]=Tabla_Pólizas[[#This Row],[Ramo SFC]])),FALSE,FALSE)) -> 
BH71: =TRANSPOSE(_xlfn.UNIQUE(Estructura[RAMO SFC],FALSE,FALSE)) -> CUMPLIMIENTO | BI71: RESPONSABILIDAD CIVIL | BM71: =TRANSPOSE(_xlfn.UNIQUE(_xlfn._xlws.FILTER(Estructura[COBERTURA],(Estructura[RAMO SFC]=Tabla_Pólizas[[#This Row],[Ramo SFC]])),FALSE,FALSE)) -> 
BH72: =TRANSPOSE(_xlfn.UNIQUE(Estructura[RAMO SFC],FALSE,FALSE)) -> CUMPLIMIENTO | BI72: RESPONSABILIDAD CIVIL | BM72: =TRANSPOSE(_xlfn.UNIQUE(_xlfn._xlws.FILTER(Estructura[COBERTURA],(Estructura[RAMO SFC]=Tabla_Pólizas[[#This Row],[Ramo SFC]])),FALSE,FALSE)) -> 
BH73: =TRANSPOSE(_xlfn.UNIQUE(Estructura[RAMO SFC],FALSE,FALSE)) -> CUMPLIMIENTO | BI73: RESPONSABILIDAD CIVIL | BM73: =TRANSPOSE(_xlfn.UNIQUE(_xlfn._xlws.FILTER(Estructura[COBERTURA],(Estructura[RAMO SFC]=Tabla_Pólizas[[#This Row],[Ramo SFC]])),FALSE,FALSE)) -> 
BH74: =TRANSPOSE(_xlfn.UNIQUE(Estructura[RAMO SFC],FALSE,FALSE)) -> CUMPLIMIENTO | BI74: RESPONSABILIDAD CIVIL | BM74: =TRANSPOSE(_xlfn.UNIQUE(_xlfn._xlws.FILTER(Estructura[COBERTURA],(Estructura[RAMO SFC]=Tabla_Pólizas[[#This Row],[Ramo SFC]])),FALSE,FALSE)) -> 
BH75: =TRANSPOSE(_xlfn.UNIQUE(Estructura[RAMO SFC],FALSE,FALSE)) -> CUMPLIMIENTO | BI75: RESPONSABILIDAD CIVIL | BM75: =TRANSPOSE(_xlfn.UNIQUE(_xlfn._xlws.FILTER(Estructura[COBERTURA],(Estructura[RAMO SFC]=Tabla_Pólizas[[#This Row],[Ramo SFC]])),FALSE,FALSE)) -> 
BH76: =TRANSPOSE(_xlfn.UNIQUE(Estructura[RAMO SFC],FALSE,FALSE)) -> CUMPLIMIENTO | BI76: RESPONSABILIDAD CIVIL | BM76: =TRANSPOSE(_xlfn.UNIQUE(_xlfn._xlws.FILTER(Estructura[COBERTURA],(Estructura[RAMO SFC]=Tabla_Pólizas[[#This Row],[Ramo SFC]])),FALSE,FALSE)) -> 
BH77: =TRANSPOSE(_xlfn.UNIQUE(Estructura[RAMO SFC],FALSE,FALSE)) -> CUMPLIMIENTO | BI77: RESPONSABILIDAD CIVIL | BM77: =TRANSPOSE(_xlfn.UNIQUE(_xlfn._xlws.FILTER(Estructura[COBERTURA],(Estructura[RAMO SFC]=Tabla_Pólizas[[#This Row],[Ramo SFC]])),FALSE,FALSE)) -> 
BH78: =TRANSPOSE(_xlfn.UNIQUE(Estructura[RAMO SFC],FALSE,FALSE)) -> CUMPLIMIENTO | BI78: RESPONSABILIDAD CIVIL | BM78: =TRANSPOSE(_xlfn.UNIQUE(_xlfn._xlws.FILTER(Estructura[COBERTURA],(Estructura[RAMO SFC]=Tabla_Pólizas[[#This Row],[Ramo SFC]])),FALSE,FALSE)) -> 
BH79: =TRANSPOSE(_xlfn.UNIQUE(Estructura[RAMO SFC],FALSE,FALSE)) -> CUMPLIMIENTO | BI79: RESPONSABILIDAD CIVIL | BM79: =TRANSPOSE(_xlfn.UNIQUE(_xlfn._xlws.FILTER(Estructura[COBERTURA],(Estructura[RAMO SFC]=Tabla_Pólizas[[#This Row],[Ramo SFC]])),FALSE,FALSE)) -> 
BH80: =TRANSPOSE(_xlfn.UNIQUE(Estructura[RAMO SFC],FALSE,FALSE)) -> CUMPLIMIENTO | BI80: RESPONSABILIDAD CIVIL | BM80: =TRANSPOSE(_xlfn.UNIQUE(_xlfn._xlws.FILTER(Estructura[COBERTURA],(Estructura[RAMO SFC]=Tabla_Pólizas[[#This Row],[Ramo SFC]])),FALSE,FALSE)) -> 
BH81: =TRANSPOSE(_xlfn.UNIQUE(Estructura[RAMO SFC],FALSE,FALSE)) -> CUMPLIMIENTO | BI81: RESPONSABILIDAD CIVIL | BM81: =TRANSPOSE(_xlfn.UNIQUE(_xlfn._xlws.FILTER(Estructura[COBERTURA],(Estructura[RAMO SFC]=Tabla_Pólizas[[#This Row],[Ramo SFC]])),FALSE,FALSE)) -> 
BH82: =TRANSPOSE(_xlfn.UNIQUE(Estructura[RAMO SFC],FALSE,FALSE)) -> CUMPLIMIENTO | BI82: RESPONSABILIDAD CIVIL | BM82: =TRANSPOSE(_xlfn.UNIQUE(_xlfn._xlws.FILTER(Estructura[COBERTURA],(Estructura[RAMO SFC]=Tabla_Pólizas[[#This Row],[Ramo SFC]])),FALSE,FALSE)) -> 
BH83: =TRANSPOSE(_xlfn.UNIQUE(Estructura[RAMO SFC],FALSE,FALSE)) -> CUMPLIMIENTO | BI83: RESPONSABILIDAD CIVIL | BM83: =TRANSPOSE(_xlfn.UNIQUE(_xlfn._xlws.FILTER(Estructura[COBERTURA],(Estructura[RAMO SFC]=Tabla_Pólizas[[#This Row],[Ramo SFC]])),FALSE,FALSE)) -> 
BH84: =TRANSPOSE(_xlfn.UNIQUE(Estructura[RAMO SFC],FALSE,FALSE)) -> CUMPLIMIENTO | BI84: RESPONSABILIDAD CIVIL | BM84: =TRANSPOSE(_xlfn.UNIQUE(_xlfn._xlws.FILTER(Estructura[COBERTURA],(Estructura[RAMO SFC]=Tabla_Pólizas[[#This Row],[Ramo SFC]])),FALSE,FALSE)) -> 
BH85: =TRANSPOSE(_xlfn.UNIQUE(Estructura[RAMO SFC],FALSE,FALSE)) -> CUMPLIMIENTO | BI85: RESPONSABILIDAD CIVIL | BM85: =TRANSPOSE(_xlfn.UNIQUE(_xlfn._xlws.FILTER(Estructura[COBERTURA],(Estructura[RAMO SFC]=Tabla_Pólizas[[#This Row],[Ramo SFC]])),FALSE,FALSE)) -> 
BH86: =TRANSPOSE(_xlfn.UNIQUE(Estructura[RAMO SFC],FALSE,FALSE)) -> CUMPLIMIENTO | BI86: RESPONSABILIDAD CIVIL | BM86: =TRANSPOSE(_xlfn.UNIQUE(_xlfn._xlws.FILTER(Estructura[COBERTURA],(Estructura[RAMO SFC]=Tabla_Pólizas[[#This Row],[Ramo SFC]])),FALSE,FALSE)) -> 
BH87: =TRANSPOSE(_xlfn.UNIQUE(Estructura[RAMO SFC],FALSE,FALSE)) -> CUMPLIMIENTO | BI87: RESPONSABILIDAD CIVIL | BM87: =TRANSPOSE(_xlfn.UNIQUE(_xlfn._xlws.FILTER(Estructura[COBERTURA],(Estructura[RAMO SFC]=Tabla_Pólizas[[#This Row],[Ramo SFC]])),FALSE,FALSE)) -> 
BH88: =TRANSPOSE(_xlfn.UNIQUE(Estructura[RAMO SFC],FALSE,FALSE)) -> CUMPLIMIENTO | BI88: RESPONSABILIDAD CIVIL | BM88: =TRANSPOSE(_xlfn.UNIQUE(_xlfn._xlws.FILTER(Estructura[COBERTURA],(Estructura[RAMO SFC]=Tabla_Pólizas[[#This Row],[Ramo SFC]])),FALSE,FALSE)) -> 
BH89: =TRANSPOSE(_xlfn.UNIQUE(Estructura[RAMO SFC],FALSE,FALSE)) -> CUMPLIMIENTO | BI89: RESPONSABILIDAD CIVIL | BM89: =TRANSPOSE(_xlfn.UNIQUE(_xlfn._xlws.FILTER(Estructura[COBERTURA],(Estructura[RAMO SFC]=Tabla_Pólizas[[#This Row],[Ramo SFC]])),FALSE,FALSE)) -> 
BH90: =TRANSPOSE(_xlfn.UNIQUE(Estructura[RAMO SFC],FALSE,FALSE)) -> CUMPLIMIENTO | BI90: RESPONSABILIDAD CIVIL | BM90: =TRANSPOSE(_xlfn.UNIQUE(_xlfn._xlws.FILTER(Estructura[COBERTURA],(Estructura[RAMO SFC]=Tabla_Pólizas[[#This Row],[Ramo SFC]])),FALSE,FALSE)) -> 
BH91: =TRANSPOSE(_xlfn.UNIQUE(Estructura[RAMO SFC],FALSE,FALSE)) -> CUMPLIMIENTO | BI91: RESPONSABILIDAD CIVIL | BM91: =TRANSPOSE(_xlfn.UNIQUE(_xlfn._xlws.FILTER(Estructura[COBERTURA],(Estructura[RAMO SFC]=Tabla_Pólizas[[#This Row],[Ramo SFC]])),FALSE,FALSE)) -> 
BH92: =TRANSPOSE(_xlfn.UNIQUE(Estructura[RAMO SFC],FALSE,FALSE)) -> CUMPLIMIENTO | BI92: RESPONSABILIDAD CIVIL | BM92: =TRANSPOSE(_xlfn.UNIQUE(_xlfn._xlws.FILTER(Estructura[COBERTURA],(Estructura[RAMO SFC]=Tabla_Pólizas[[#This Row],[Ramo SFC]])),FALSE,FALSE)) -> 
BH93: =TRANSPOSE(_xlfn.UNIQUE(Estructura[RAMO SFC],FALSE,FALSE)) -> CUMPLIMIENTO | BI93: RESPONSABILIDAD CIVIL | BM93: =TRANSPOSE(_xlfn.UNIQUE(_xlfn._xlws.FILTER(Estructura[COBERTURA],(Estructura[RAMO SFC]=Tabla_Pólizas[[#This Row],[Ramo SFC]])),FALSE,FALSE)) -> 
BH94: =TRANSPOSE(_xlfn.UNIQUE(Estructura[RAMO SFC],FALSE,FALSE)) -> CUMPLIMIENTO | BI94: RESPONSABILIDAD CIVIL | BM94: =TRANSPOSE(_xlfn.UNIQUE(_xlfn._xlws.FILTER(Estructura[COBERTURA],(Estructura[RAMO SFC]=Tabla_Pólizas[[#This Row],[Ramo SFC]])),FALSE,FALSE)) -> 
BH95: =TRANSPOSE(_xlfn.UNIQUE(Estructura[RAMO SFC],FALSE,FALSE)) -> CUMPLIMIENTO | BI95: RESPONSABILIDAD CIVIL | BM95: =TRANSPOSE(_xlfn.UNIQUE(_xlfn._xlws.FILTER(Estructura[COBERTURA],(Estructura[RAMO SFC]=Tabla_Pólizas[[#This Row],[Ramo SFC]])),FALSE,FALSE)) -> 
BH96: =TRANSPOSE(_xlfn.UNIQUE(Estructura[RAMO SFC],FALSE,FALSE)) -> CUMPLIMIENTO | BI96: RESPONSABILIDAD CIVIL | BM96: =TRANSPOSE(_xlfn.UNIQUE(_xlfn._xlws.FILTER(Estructura[COBERTURA],(Estructura[RAMO SFC]=Tabla_Pólizas[[#This Row],[Ramo SFC]])),FALSE,FALSE)) -> 
BH97: =TRANSPOSE(_xlfn.UNIQUE(Estructura[RAMO SFC],FALSE,FALSE)) -> CUMPLIMIENTO | BI97: RESPONSABILIDAD CIVIL | BM97: =TRANSPOSE(_xlfn.UNIQUE(_xlfn._xlws.FILTER(Estructura[COBERTURA],(Estructura[RAMO SFC]=Tabla_Pólizas[[#This Row],[Ramo SFC]])),FALSE,FALSE)) -> 
BH98: =TRANSPOSE(_xlfn.UNIQUE(Estructura[RAMO SFC],FALSE,FALSE)) -> CUMPLIMIENTO | BI98: RESPONSABILIDAD CIVIL | BM98: =TRANSPOSE(_xlfn.UNIQUE(_xlfn._xlws.FILTER(Estructura[COBERTURA],(Estructura[RAMO SFC]=Tabla_Pólizas[[#This Row],[Ramo SFC]])),FALSE,FALSE)) -> 
BH99: =TRANSPOSE(_xlfn.UNIQUE(Estructura[RAMO SFC],FALSE,FALSE)) -> CUMPLIMIENTO | BI99: RESPONSABILIDAD CIVIL | BM99: =TRANSPOSE(_xlfn.UNIQUE(_xlfn._xlws.FILTER(Estructura[COBERTURA],(Estructura[RAMO SFC]=Tabla_Pólizas[[#This Row],[Ramo SFC]])),FALSE,FALSE)) -> 
BH100: =TRANSPOSE(_xlfn.UNIQUE(Estructura[RAMO SFC],FALSE,FALSE)) -> CUMPLIMIENTO | BI100: RESPONSABILIDAD CIVIL | BM100: =TRANSPOSE(_xlfn.UNIQUE(_xlfn._xlws.FILTER(Estructura[COBERTURA],(Estructura[RAMO SFC]=Tabla_Pólizas[[#This Row],[Ramo SFC]])),FALSE,FALSE)) -> 
BH101: =TRANSPOSE(_xlfn.UNIQUE(Estructura[RAMO SFC],FALSE,FALSE)) -> CUMPLIMIENTO | BI101: RESPONSABILIDAD CIVIL | BM101: =TRANSPOSE(_xlfn.UNIQUE(_xlfn._xlws.FILTER(Estructura[COBERTURA],(Estructura[RAMO SFC]=Tabla_Pólizas[[#This Row],[Ramo SFC]])),FALSE,FALSE)) -> 
BH102: =TRANSPOSE(_xlfn.UNIQUE(Estructura[RAMO SFC],FALSE,FALSE)) -> CUMPLIMIENTO | BI102: RESPONSABILIDAD CIVIL | BM102: =TRANSPOSE(_xlfn.UNIQUE(_xlfn._xlws.FILTER(Estructura[COBERTURA],(Estructura[RAMO SFC]=Tabla_Pólizas[[#This Row],[Ramo SFC]])),FALSE,FALSE)) -> 
BH103: =TRANSPOSE(_xlfn.UNIQUE(Estructura[RAMO SFC],FALSE,FALSE)) -> CUMPLIMIENTO | BI103: RESPONSABILIDAD CIVIL | BM103: =TRANSPOSE(_xlfn.UNIQUE(_xlfn._xlws.FILTER(Estructura[COBERTURA],(Estructura[RAMO SFC]=Tabla_Pólizas[[#This Row],[Ramo SFC]])),FALSE,FALSE)) -> 
BH104: =TRANSPOSE(_xlfn.UNIQUE(Estructura[RAMO SFC],FALSE,FALSE)) -> CUMPLIMIENTO | BI104: RESPONSABILIDAD CIVIL | BM104: =TRANSPOSE(_xlfn.UNIQUE(_xlfn._xlws.FILTER(Estructura[COBERTURA],(Estructura[RAMO SFC]=Tabla_Pólizas[[#This Row],[Ramo SFC]])),FALSE,FALSE)) -> 
BH105: =TRANSPOSE(_xlfn.UNIQUE(Estructura[RAMO SFC],FALSE,FALSE)) -> CUMPLIMIENTO | BI105: RESPONSABILIDAD CIVIL | BM105: =TRANSPOSE(_xlfn.UNIQUE(_xlfn._xlws.FILTER(Estructura[COBERTURA],(Estructura[RAMO SFC]=Tabla_Pólizas[[#This Row],[Ramo SFC]])),FALSE,FALSE)) -> 
BH106: =TRANSPOSE(_xlfn.UNIQUE(Estructura[RAMO SFC],FALSE,FALSE)) -> CUMPLIMIENTO | BI106: RESPONSABILIDAD CIVIL | BM106: =TRANSPOSE(_xlfn.UNIQUE(_xlfn._xlws.FILTER(Estructura[COBERTURA],(Estructura[RAMO SFC]=Tabla_Pólizas[[#This Row],[Ramo SFC]])),FALSE,FALSE)) -> 
BH107: =TRANSPOSE(_xlfn.UNIQUE(Estructura[RAMO SFC],FALSE,FALSE)) -> CUMPLIMIENTO | BI107: RESPONSABILIDAD CIVIL | BM107: =TRANSPOSE(_xlfn.UNIQUE(_xlfn._xlws.FILTER(Estructura[COBERTURA],(Estructura[RAMO SFC]=Tabla_Pólizas[[#This Row],[Ramo SFC]])),FALSE,FALSE)) -> 

Sheet Coberturas y Proceso (hidden)
G1: RAMO SFC | H1: COBERTURA | I1: LLAVE | J1: HONORARIOS | K1: GASTOS DIRECTOS | L1: GASTOS INDIRECTOS | BL1: ETAPAS Y PUNTAJES DE LOS PROCESOS JUDICIALES - RESPONSABILIDAD FISCAL - JURISDICCIÓN ORDINARIA - CONTENCIOSO ADMINISTRATIVO - TRIBUNAL ARBITRAMENTO | BZ1: CRITERIOS ANÁLISIS CUALITATIVO DEL PROCESO JUDICIAL
A2: TIPO DE PROCESO JUDICIAL | B2: ÚLTIMA_INSTANCIA_FAVORABLE | C2: SÍ | D2: Neutral | E2: NO | G2: CUMPLIMIENTO | H2: ANTICIPO | I2: =Estructura[[#This Row],[RAMO SFC]]&"-"&Estructura[[#This Row],[COBERTURA]] -> CUMPLIMIENTO-ANTICIPO | N2: Responsabilidad_Fiscal | O2: SÍ | P2: SÍ con atenuantes | Q2: Neutral | R2: NO | T2: Incidente_Reparación | U2: SÍ | V2: Neutral | W2: NO | Y2: Proceso_Ejecutivo | Z2: SÍ | AA2: Neutral | AB2: NO | AD2: Proceso_Coactivo | AE2: SÍ | AF2: Neutral | AG2: NO | AI2: Tribunal_Arbitramento | AJ2: SÍ | AK2: Neutral | AL2: NO | AN2: Acción_Protección_Consumidor | AO2: SÍ | AP2: Neutral | AQ2: NO | AS2: Proceso_Contractual | AT2: SÍ | AU2: Neutral | AV2: NO | AX2: Proceso_Nulidad | AY2: SÍ | AZ2: Neutral | BA2: NO | BC2: Reparación_Directa | BD2: SÍ | BE2: Neutral | BF2: NO | BH2: Jurisdicción_Ordinaria_Civil | BI2: SÍ | BJ2: Neutral | BK2: NO | BM2: Jurisdicción_Ordinaria_Laboral | BN2: SÍ | BO2: Neutral | BP2: NO | BR2: Calificación | BS2: Columna | BU2: Perfil_afianzado | BV2: Puntaje | BX2: Incumplimiento | BY2: Puntaje Inicial | CA2: Territorialidad | CB2: SÍ | CC2: Neutral | CD2: NO | CF2: Puntaje | CG2: CLASIFICACIÓN | CH2: Cumplimiento | CI2: Total | CK2: Etapas_condena
A3: Acción_Protección_Consumidor | B3: Resolución | C3: 0 | D3: 0 | E3: 0 | G3: CUMPLIMIENTO | H3: ART. 513 | I3: =Estructura[[#This Row],[RAMO SFC]]&"-"&Estructura[[#This Row],[COBERTURA]] -> CUMPLIMIENTO-ART. 513 | N3: Auto de apertura | O3: 1.5 | P3: 1.5 | Q3: =Tabla_Resp_Fiscal[[#This Row],[NO]]*0.6 -> 1.2 | R3: 2 | T3: Presentación demanda - contestación | U3: 1.5 | V3: =Tabla_Jurisd_Ord_Laboral[[#This Row],[NO]]*0.6 -> 1.2 | W3: 2 | Y3: Presentación demanda - contestación | Z3: 1.5 | AA3: =Tabla_Proces_Coact[[#This Row],[NO]]*0.6 -> 1.2 | AB3: 2 | AD3: Presentación demanda - contestación | AE3: 1.5 | AF3: =Tabla_Proces_Coact[[#This Row],[NO]]*0.6 -> 1.2 | AG3: 2 | AI3: Contestación demanda - | AJ3: 1.5 | AK3: =Tabla_Proces_Coact[[#This Row],[NO]]*0.6 -> 1.2 | AL3: 2 | AN3: Contestación demanda - | AO3: 1.5 | AP3: =Tabla_Proces_Coact[[#This Row],[NO]]*0.6 -> 1.2 | AQ3: 2 | AS3: Presentación demanda - contestación | AT3: 1.5 | AU3: =Tabla_Proces_Coact[[#This Row],[NO]]*0.6 -> 1.2 | AV3: 2 | AX3: Presentación demanda - contestación | AY3: 1.5 | AZ3: =Tabla_Proces_Coact[[#This Row],[NO]]*0.6 -> 1.2 | BA3: 2 | BC3: Presentación demanda - contestación | BD3: 1.5 | BE3: =Tabla_Jurisd_Ord_Laboral[[#This Row],[NO]]*0.6 -> 1.2 | BF3: 2 | BH3: Presentación demanda - contestación | BI3: 1.5 | BJ3: =Tabla_Jurisd_Ord_Laboral[[#This Row],[NO]]*0.6 -> 1.2 | BK3: 2 | BM3: Presentación demanda - contestación | BN3: 1.5 | BO3: =Tabla_Jurisd_Ord_Laboral[[#This Row],[NO]]*0.6 -> 1.2 | BP3: 2 | BR3: SÍ | BS3: 2 | BU3: Muy solvente | BV3: 1.5 | BX3: SÍ | BY3: 0.5 | CA3: NO APLICA | CB3: 0 | CC3: =Tabla_territorialidad[[#This Row],[NO]]/2 -> 0 | CD3: 0 | CF3: 0 | CG3: Probable | CH3: 1 | CI3: 1 | CK3: Fallo fiscal I - desfavorable
A4: Incidente_Reparación | B4: Sentencia segunda instancia | C4: 0.25 | D4: 0.5 | E4: 1 | G4: CUMPLIMIENTO | H4: ART. 599 | I4: =Estructura[[#This Row],[RAMO SFC]]&"-"&Estructura[[#This Row],[COBERTURA]] -> CUMPLIMIENTO-ART. 599 | N4: Auto de imputación - desfavorable | O4: 0.5 | P4: 0.5 | Q4: 0 | R4: -1 | T4: Sentencia primera instancia - favorable | U4: 3 | V4: =Tabla_Jurisd_Ord_Laboral[[#This Row],[NO]]*0.6 -> 1.8 | W4: 3 | Y4: Sentencia primera instancia - favorable | Z4: 3 | AA4: =Tabla_Proces_Coact[[#This Row],[NO]]*0.6 -> 2.4 | AB4: 4 | AD4: Sentencia primera instancia - favorable | AE4: 3 | AF4: =Tabla_Proces_Coact[[#This Row],[NO]]*0.6 -> 2.4 | AG4: 4 | AI4: Laudo arbitral - favorable | AJ4: 3 | AK4: =Tabla_Proces_Coact[[#This Row],[NO]]*0.6 -> 2.4 | AL4: 5 | AN4: Resolución - favorable | AO4: 3 | AP4: =Tabla_Proces_Coact[[#This Row],[NO]]*0.6 -> 2.4 | AQ4: 4 | AS4: Sentencia primera instancia - favorable | AT4: 3 | AU4: =Tabla_Proces_Coact[[#This Row],[NO]]*0.6 -> 2.4 | AV4: 4 | AX4: Sentencia primera instancia - favorable | AY4: 3 | AZ4: =Tabla_Proces_Coact[[#This Row],[NO]]*0.6 -> 2.4 | BA4: 4 | BC4: Sentencia primera instancia - favorable | BD4: 3 | BE4: =Tabla_Jurisd_Ord_Laboral[[#This Row],[NO]]*0.6 -> 1.8 | BF4: 3 | BH4: Sentencia primera instancia - favorable | BI4: 3 | BJ4: =Tabla_Jurisd_Ord_Laboral[[#This Row],[NO]]*0.6 -> 1.8 | BK4: 3 | BM4: Sentencia primera instancia - favorable | BN4: 3 | BO4: =Tabla_Jurisd_Ord_Laboral[[#This Row],[NO]]*0.6 -> 1.8 | BP4: 3 | BR4: Neutral | BS4: 3 | BU4: Solvente | BV4: 0.75 | BX4: Neutral | BY4: 3 | CA4: AMAZONAS | CB4: 0 | CC4: =Tabla_territorialidad[[#This Row],[NO]]/2 -> -0.5 | CD4: -1 | CF4: 1 | CG4: Probable | CH4: 0.8209542176 | CI4: 0.7571541309 | CK4: Fallo fiscal II - desfavorable
A5: Jurisdicción_Ordinaria_Civil | B5: Sentencia segunda instancia | C5: 0 | D5: 0 | E5: 0 | G5: CUMPLIMIENTO | H5: CALIDAD | I5: =Estructura[[#This Row],[RAMO SFC]]&"-"&Estructura[[#This Row],[COBERTURA]] -> CUMPLIMIENTO-CALIDAD | N5: Fallo fiscal I - favorable | O5: 2.5 | P5: 2.5 | Q5: =Tabla_Resp_Fiscal[[#This Row],[NO]]*0.6 -> 2.4 | R5: 4 | T5: Sentencia primera instancia - desfavorable | U5: 0 | V5: =Tabla_Jurisd_Ord_Laboral[[#This Row],[NO]]*0.6 -> -1.8 | W5: -3 | Y5: Sentencia primera instancia - desfavorable | Z5: 0 | AA5: =Tabla_Proces_Coact[[#This Row],[NO]]*0.6 -> -1.2 | AB5: -2 | AD5: Sentencia primera instancia - desfavorable | AE5: 0 | AF5: =Tabla_Proces_Coact[[#This Row],[NO]]*0.6 -> -1.2 | AG5: -2 | AI5: Laudo arbitral - desfavorable | AJ5: 0 | AK5: =Tabla_Proces_Coact[[#This Row],[NO]]*0.6 -> -1.2 | AL5: -5 | AN5: Resolución - desfavorable | AO5: 0 | AP5: =Tabla_Proces_Coact[[#This Row],[NO]]*0.6 -> -1.2 | AQ5: -2 | AS5: Sentencia primera instancia - desfavorable | AT5: 0 | AU5: =Tabla_Proces_Coact[[#This Row],[NO]]*0.6 -> -1.2 | AV5: -2 | AX5: Sentencia primera instancia - desfavorable | AY5: 0 | AZ5: =Tabla_Proces_Coact[[#This Row],[NO]]*0.6 -> -1.2 | BA5: -2 | BC5: Sentencia primera instancia - desfavorable | BD5: 0 | BE5: =Tabla_Jurisd_Ord_Laboral[[#This Row],[NO]]*0.6 -> -1.8 | BF5: -3 | BH5: Sentencia primera instancia - desfavorable | BI5: 0 | BJ5: =Tabla_Jurisd_Ord_Laboral[[#This Row],[NO]]*0.6 -> -1.8 | BK5: -3 | BM5: Sentencia primera instancia - desfavorable | BN5: 0 | BO5: -1 | BP5: -3 | BR5: NO | BS5: 4 | BU5: Normal | BV5: 0 | BX5: NO | BY5: 5 | CA5: ANTIOQUIA | CB5: 0 | CC5: =Tabla_territorialidad[[#This Row],[NO]]/2 -> 0 | CD5: 0 | CF5: 2 | CG5: Probable | CH5: 0.6419084353 | CI5: 0.5479346786 | CK5: Sentencia primera instancia - desfavorable
A6: Jurisdicción_Ordinaria_Laboral | B6: Sentencia segunda instancia | C6: 0 | D6: 0 | E6: 0 | G6: CUMPLIMIENTO | H6: CALIDAD DE SERVICIO | I6: =Estructura[[#This Row],[RAMO SFC]]&"-"&Estructura[[#This Row],[COBERTURA]] -> CUMPLIMIENTO-CALIDAD DE SERVICIO | N6: Fallo fiscal I - desfavorable | O6: 0 | P6: 0 | Q6: -1.5 | R6: -2 | T6: Sentencia segunda instancia - favorable | U6: 4 | V6: =Tabla_Jurisd_Ord_Laboral[[#This Row],[NO]]*0.6 -> 2.4 | W6: 4 | Y6: Sentencia segunda instancia - favorable | Z6: 4 | AA6: =Tabla_Proces_Coact[[#This Row],[NO]]*0.6 -> 3 | AB6: 5 | AD6: Sentencia segunda instancia - favorable | AE6: 4 | AF6: =Tabla_Proces_Coact[[#This Row],[NO]]*0.6 -> 3 | AG6: 5 | AN6: Recurso apelación - favorable | AO6: 4 | AP6: =Tabla_Proces_Coact[[#This Row],[NO]]*0.6 -> 3 | AQ6: 5 | AS6: Sentencia segunda instancia - favorable | AT6: 4 | AU6: =Tabla_Proces_Coact[[#This Row],[NO]]*0.6 -> 3 | AV6: 5 | AX6: Sentencia segunda instancia - favorable | AY6: 4 | AZ6: =Tabla_Proces_Coact[[#This Row],[NO]]*0.6 -> 3 | BA6: 5 | BC6: Sentencia segunda instancia - favorable | BD6: 4 | BE6: =Tabla_Jurisd_Ord_Laboral[[#This Row],[NO]]*0.6 -> 2.4 | BF6: 5 | BH6: Sentencia segunda instancia - favorable | BI6: 4 | BJ6: =Tabla_Jurisd_Ord_Laboral[[#This Row],[NO]]*0.6 -> 2.4 | BK6: 4 | BM6: Sentencia segunda instancia - favorable | BN6: 4 | BO6: =Tabla_Jurisd_Ord_Laboral[[#This Row],[NO]]*0.6 -> 2.4 | BP6: 4 | BU6: Ausente o insolvente | BV6: -0.25 | CA6: ARAUCA | CB6: 0 | CC6: =Tabla_territorialidad[[#This Row],[NO]]/2 -> 0.5 | CD6: 1 | CF6: 3 | CG6: Eventual | CH6: 0.2951518448 | CI6: 0.3422078699 | CK6: Sentencia segunda instancia - desfavorable
A7: Proceso_Coactivo | B7: Fallo coactivo | C7: 0 | D7: 0 | E7: 0 | G7: CUMPLIMIENTO | H7: CALIDAD DE SUMINISTRO | I7: =Estructura[[#This Row],[RAMO SFC]]&"-"&Estructura[[#This Row],[COBERTURA]] -> CUMPLIMIENTO-CALIDAD DE SUMINISTRO | N7: Fallo fiscal II - favorable | O7: 4 | P7: 4 | Q7: =Tabla_Resp_Fiscal[[#This Row],[NO]]*0.6 -> 2.4 | R7: 4 | T7: Sentencia segunda instancia - desfavorable | U7: 0 | V7: =Tabla_Jurisd_Ord_Laboral[[#This Row],[NO]]*0.6 -> -2.4 | W7: -4 | Y7: Sentencia segunda instancia - desfavorable | Z7: 0 | AA7: =Tabla_Proces_Coact[[#This Row],[NO]]*0.6 -> -3 | AB7: -5 | AD7: Sentencia segunda instancia - desfavorable | AE7: 0 | AF7: =Tabla_Proces_Coact[[#This Row],[NO]]*0.6 -> -3 | AG7: -5 | AN7: Recurso apelación - desfavorable | AO7: 0 | AP7: =Tabla_Proces_Coact[[#This Row],[NO]]*0.6 -> -3 | AQ7: -5 | AS7: Sentencia segunda instancia - desfavorable | AT7: 0 | AU7: =Tabla_Proces_Coact[[#This Row],[NO]]*0.6 -> -3 | AV7: -5 | AX7: Sentencia segunda instancia - desfavorable | AY7: 0 | AZ7: =Tabla_Proces_Coact[[#This Row],[NO]]*0.6 -> -3 | BA7: -5 | BC7: Sentencia segunda instancia - desfavorable | BD7: 0 | BE7: =Tabla_Jurisd_Ord_Laboral[[#This Row],[NO]]*0.6 -> -2.4 | BF7: -5 | BH7: Sentencia segunda instancia - desfavorable | BI7: 0 | BJ7: =Tabla_Jurisd_Ord_Laboral[[#This Row],[NO]]*0.6 -> -2.4 | BK7: -4 | BM7: Sentencia segunda instancia - desfavorable | BN7: 0 | BO7: -2 | BP7: -4 | CA7: ATLANTICO | CB7: 0 | CC7: =Tabla_territorialidad[[#This Row],[NO]]/2 -> 0 | CD7: 0 | CF7: 4 | CG7: Eventual | CH7: 0.1982213592 | CI7: 0.2595711199 | CK7: Sentencia casación - desfavorable
A8: Proceso_Contractual | B8: Sentencia segunda instancia | C8: -0.25 | D8: -0.5 | E8: -1 | G8: CUMPLIMIENTO | H8: CAUCION JUDICIAL | I8: =Estructura[[#This Row],[RAMO SFC]]&"-"&Estructura[[#This Row],[COBERTURA]] -> CUMPLIMIENTO-CAUCION JUDICIAL | N8: Fallo fiscal II - desfavorable | O8: 0 | P8: 0 | Q8: =Tabla_Resp_Fiscal[[#This Row],[NO]]*0.6 -> -2.4 | R8: -4 | T8: Sentencia casación - favorable | U8: 4 | V8: =Tabla_Jurisd_Ord_Laboral[[#This Row],[NO]]*0.6 -> 3 | W8: 5 | BH8: Sentencia casación - favorable | BI8: 4 | BJ8: =Tabla_Jurisd_Ord_Laboral[[#This Row],[NO]]*0.6 -> 3 | BK8: 5 | BM8: Sentencia casación - favorable | BN8: 4 | BO8: =Tabla_Jurisd_Ord_Laboral[[#This Row],[NO]]*0.6 -> 3 | BP8: 5 | CA8: BOGOTA | CB8: 0 | CC8: =Tabla_territorialidad[[#This Row],[NO]]/2 -> 0 | CD8: 0 | CF8: 5 | CG8: Eventual | CH8: 0.1098222885 | CI8: 0.180369408 | CK8: Laudo arbitral - desfavorable
A9: Proceso_Ejecutivo | B9: Sentencia segunda instancia | C9: -0.25 | D9: -0.5 | E9: -1 | G9: CUMPLIMIENTO | H9: CONTRATISTAS Y SUBCONTRATISTAS | I9: =Estructura[[#This Row],[RAMO SFC]]&"-"&Estructura[[#This Row],[COBERTURA]] -> CUMPLIMIENTO-CONTRATISTAS Y SUBCONTRATISTAS | T9: Sentencia casación - desfavorable | U9: 0 | V9: =Tabla_Jurisd_Ord_Laboral[[#This Row],[NO]]*0.6 -> -3 | W9: -5 | BH9: Sentencia casación - desfavorable | BI9: 0 | BJ9: =Tabla_Jurisd_Ord_Laboral[[#This Row],[NO]]*0.6 -> -3 | BK9: -5 | BM9: Sentencia casación - desfavorable | BN9: 0 | BO9: =Tabla_Jurisd_Ord_Laboral[[#This Row],[NO]]*0.6 -> -3 | BP9: -5 | BR9: Calificación_RespFiscal | BS9: Columna | BU9: Contragarantía | BV9: Puntaje | BX9: Incumplimiento_RespFiscal | BY9: Puntaje Inicial | CA9: BOLIVAR | CB9: 0 | CC9: =Tabla_territorialidad[[#This Row],[NO]]/2 -> 0.25 | CD9: 0.5 | CF9: 6 | CG9: Eventual | CH9: 0.09601472979 | CI9: 0.1648380288 | CK9: Resolución - desfavorable
A10: Proceso_Nulidad | B10: Sentencia segunda instancia | C10: 0.25 | D10: 0.5 | E10: 1 | G10: CUMPLIMIENTO | H10: CUMPLIMIENTO | I10: =Estructura[[#This Row],[RAMO SFC]]&"-"&Estructura[[#This Row],[COBERTURA]] -> CUMPLIMIENTO-CUMPLIMIENTO | BR10: SÍ | BS10: 2 | BU10: Encargo fiduciario | BV10: 2 | BX10: SÍ | BY10: 0.5 | CA10: BOYACA | CB10: 0 | CC10: =Tabla_territorialidad[[#This Row],[NO]]/2 -> 0.25 | CD10: 0.5 | CF10: 7 | CG10: Remoto | CH10: 0.07776499114 | CI10: 0.04252900811 | CK10: Recurso apelación - desfavorable
A11: Reparación_Directa | B11: Sentencia segunda instancia | C11: 0 | D11: 0 | E11: 0 | G11: CUMPLIMIENTO | H11: DISPOSICIONES LEGALES | I11: =Estructura[[#This Row],[RAMO SFC]]&"-"&Estructura[[#This Row],[COBERTURA]] -> CUMPLIMIENTO-DISPOSICIONES LEGALES | BR11: SÍ con atenuantes | BS11: 3 | BU11: CDT | BV11: 1.5 | BX11: SÍ con atenuantes | BY11: 1.5 | CA11: CALDAS | CB11: 0 | CC11: =Tabla_territorialidad[[#This Row],[NO]]/2 -> -0.25 | CD11: -0.5 | CF11: 8 | CG11: Remoto | CH11: 0.06912554815 | CI11: 0.03172793398
A12: Responsabilidad_Fiscal | B12: Fallo Fiscal II | C12: 0 | D12: 0 | E12: 0 | G12: CUMPLIMIENTO | H12: ESTABILIDAD DE LA OBRA | I12: =Estructura[[#This Row],[RAMO SFC]]&"-"&Estructura[[#This Row],[COBERTURA]] -> CUMPLIMIENTO-ESTABILIDAD DE LA OBRA | BR12: Neutral | BS12: 4 | BU12: Garantía Hipotecaria | BV12: 0.5 | BX12: Neutral | BY12: 3 | CA12: CAQUETA | CB12: 0 | CC12: =Tabla_territorialidad[[#This Row],[NO]]/2 -> 0.5 | CD12: 1 | CF12: 9 | CG12: Remoto | CH12: 0.06140321672 | CI12: 0.02606073914
A13: Tribunal_Arbitramento | B13: Laudo arbitral | C13: -0.25 | D13: -0.5 | E13: -1 | G13: CUMPLIMIENTO | H13: OTRAS | I13: =Estructura[[#This Row],[RAMO SFC]]&"-"&Estructura[[#This Row],[COBERTURA]] -> CUMPLIMIENTO-OTRAS | BR13: NO | BS13: 5 | BU13: Garantía Prendaria | BV13: 0.5 | BX13: NO | BY13: 5 | CA13: CASANARE | CB13: 0 | CC13: =Tabla_territorialidad[[#This Row],[NO]]/2 -> -0.25 | CD13: -0.5 | CF13: 10 | CG13: Remoto | CH13: 0 | CI13: 0
G14: CUMPLIMIENTO | H14: PLO | I14: =Estructura[[#This Row],[RAMO SFC]]&"-"&Estructura[[#This Row],[COBERTURA]] -> CUMPLIMIENTO-PLO | BU14: Pagaré Casa Matriz | BV14: 0.25 | CA14: CAUCA | CB14: 0 | CC14: =Tabla_territorialidad[[#This Row],[NO]]/2 -> 0.25 | CD14: 0.5
G15: CUMPLIMIENTO | H15: SALARIOS Y PRESTACIONES | I15: =Estructura[[#This Row],[RAMO SFC]]&"-"&Estructura[[#This Row],[COBERTURA]] -> CUMPLIMIENTO-SALARIOS Y PRESTACIONES | BU15: Pagaré Sucursal Col | BV15: 0 | CA15: CESAR | CB15: 0 | CC15: =Tabla_territorialidad[[#This Row],[NO]]/2 -> 0.25 | CD15: 0.5
G16: CUMPLIMIENTO | H16: SERIEDAD DE LA OFERTA | I16: =Estructura[[#This Row],[RAMO SFC]]&"-"&Estructura[[#This Row],[COBERTURA]] -> CUMPLIMIENTO-SERIEDAD DE LA OFERTA | BU16: No hay Contragarantía | BV16: 0 | CA16: CHOCO | CB16: 0 | CC16: =Tabla_territorialidad[[#This Row],[NO]]/2 -> -0.25 | CD16: -0.5
G17: RESPONSABILIDAD CIVIL | H17: BIENES BAJO TENENCIA, CUIDADO Y CONTROL | I17: =Estructura[[#This Row],[RAMO SFC]]&"-"&Estructura[[#This Row],[COBERTURA]] -> RESPONSABILIDAD CIVIL-BIENES BAJO TENENCIA, CUIDADO Y CONTROL | CA17: CORDOBA | CB17: 0 | CC17: =Tabla_territorialidad[[#This Row],[NO]]/2 -> -0.5 | CD17: -1
G18: RESPONSABILIDAD CIVIL | H18: CONTAMINACION | I18: =Estructura[[#This Row],[RAMO SFC]]&"-"&Estructura[[#This Row],[COBERTURA]] -> RESPONSABILIDAD CIVIL-CONTAMINACION | CA18: CUNDINAMARCA | CB18: 0 | CC18: =Tabla_territorialidad[[#This Row],[NO]]/2 -> 0.25 | CD18: 0.5
G19: RESPONSABILIDAD CIVIL | H19: CONTRATISTAS Y SUBCONTRATISTAS | I19: =Estructura[[#This Row],[RAMO SFC]]&"-"&Estructura[[#This Row],[COBERTURA]] -> RESPONSABILIDAD CIVIL-CONTRATISTAS Y SUBCONTRATISTAS | CA19: GUANIA | CB19: 0 | CC19: =Tabla_territorialidad[[#This Row],[NO]]/2 -> 0.5 | CD19: 1
G20: RESPONSABILIDAD CIVIL | H20: DAÑO EMERGENTE | I20: =Estructura[[#This Row],[RAMO SFC]]&"-"&Estructura[[#This Row],[COBERTURA]] -> RESPONSABILIDAD CIVIL-DAÑO EMERGENTE | CA20: GUAVIARE | CB20: 0 | CC20: =Tabla_territorialidad[[#This Row],[NO]]/2 -> 0.5 | CD20: 1
G21: RESPONSABILIDAD CIVIL | H21: DAÑO MORAL | I21: =Estructura[[#This Row],[RAMO SFC]]&"-"&Estructura[[#This Row],[COBERTURA]] -> RESPONSABILIDAD CIVIL-DAÑO MORAL | CA21: HUILA | CB21: 0 | CC21: =Tabla_territorialidad[[#This Row],[NO]]/2 -> 0 | CD21: 0
G22: RESPONSABILIDAD CIVIL | H22: DAÑOS MATERIALES A BIENES | I22: =Estructura[[#This Row],[RAMO SFC]]&"-"&Estructura[[#This Row],[COBERTURA]] -> RESPONSABILIDAD CIVIL-DAÑOS MATERIALES A BIENES | CA22: LA GUAJIRA | CB22: 0 | CC22: =Tabla_territorialidad[[#This Row],[NO]]/2 -> 0.5 | CD22: 1
G23: RESPONSABILIDAD CIVIL | H23: PERJUICIOS EXTRAPATRIMONIALES | I23: =Estructura[[#This Row],[RAMO SFC]]&"-"&Estructura[[#This Row],[COBERTURA]] -> RESPONSABILIDAD CIVIL-PERJUICIOS EXTRAPATRIMONIALES | CA23: MAGDALENA | CB23: 0 | CC23: =Tabla_territorialidad[[#This Row],[NO]]/2 -> -0.25 | CD23: -0.5
G24: RESPONSABILIDAD CIVIL | H24: LUCRO CESANTE | I24: =Estructura[[#This Row],[RAMO SFC]]&"-"&Estructura[[#This Row],[COBERTURA]] -> RESPONSABILIDAD CIVIL-LUCRO CESANTE | CA24: META | CB24: 0 | CC24: =Tabla_territorialidad[[#This Row],[NO]]/2 -> 0.25 | CD24: 0.5
G25: RESPONSABILIDAD CIVIL | H25: OTRAS | I25: =Estructura[[#This Row],[RAMO SFC]]&"-"&Estructura[[#This Row],[COBERTURA]] -> RESPONSABILIDAD CIVIL-OTRAS | CA25: NARIÑO | CB25: 0 | CC25: =Tabla_territorialidad[[#This Row],[NO]]/2 -> 0.25 | CD25: 0.5
G26: RESPONSABILIDAD CIVIL | H26: PLO | I26: =Estructura[[#This Row],[RAMO SFC]]&"-"&Estructura[[#This Row],[COBERTURA]] -> RESPONSABILIDAD CIVIL-PLO | CA26: NORTE DE SANTANDER | CB26: 0 | CC26: =Tabla_territorialidad[[#This Row],[NO]]/2 -> 0.25 | CD26: 0.5
G27: RESPONSABILIDAD CIVIL | H27: SUSPENSION DEL PROCEDIMIENTO ADMINISTRATIVO | I27: =Estructura[[#This Row],[RAMO SFC]]&"-"&Estructura[[#This Row],[COBERTURA]] -> RESPONSABILIDAD CIVIL-SUSPENSION DEL PROCEDIMIENTO ADMINISTRATIVO | CA27: PUTUMAYO | CB27: 0 | CC27: =Tabla_territorialidad[[#This Row],[NO]]/2 -> 0.5 | CD27: 1
G28: RESPONSABILIDAD CIVIL | H28: VEHICULOS PROPIOS Y NO PROPIOS | I28: =Estructura[[#This Row],[RAMO SFC]]&"-"&Estructura[[#This Row],[COBERTURA]] -> RESPONSABILIDAD CIVIL-VEHICULOS PROPIOS Y NO PROPIOS | CA28: QUINDIO | CB28: 0 | CC28: =Tabla_territorialidad[[#This Row],[NO]]/2 -> 0 | CD28: 0
G29: RESPONSABILIDAD CIVIL | H29: RC CLINICAS Y HOSPITALES | I29: =Estructura[[#This Row],[RAMO SFC]]&"-"&Estructura[[#This Row],[COBERTURA]] -> RESPONSABILIDAD CIVIL-RC CLINICAS Y HOSPITALES | CA29: RISARALDA | CB29: 0 | CC29: =Tabla_territorialidad[[#This Row],[NO]]/2 -> 0 | CD29: 0
G30: RESPONSABILIDAD CIVIL | H30: RC MEDICA | I30: =Estructura[[#This Row],[RAMO SFC]]&"-"&Estructura[[#This Row],[COBERTURA]] -> RESPONSABILIDAD CIVIL-RC MEDICA | CA30: SAN ANDRES | CB30: 0 | CC30: =Tabla_territorialidad[[#This Row],[NO]]/2 -> 0.5 | CD30: 1
G31: RESPONSABILIDAD CIVIL | H31: RC PATRONAL | I31: =Estructura[[#This Row],[RAMO SFC]]&"-"&Estructura[[#This Row],[COBERTURA]] -> RESPONSABILIDAD CIVIL-RC PATRONAL | CA31: SANTANDER | CB31: 0 | CC31: =Tabla_territorialidad[[#This Row],[NO]]/2 -> 0 | CD31: 0
G32: RESPONSABILIDAD CIVIL | H32: RC PROFESIONAL | I32: =Estructura[[#This Row],[RAMO SFC]]&"-"&Estructura[[#This Row],[COBERTURA]] -> RESPONSABILIDAD CIVIL-RC PROFESIONAL | CA32: SUCRE | CB32: 0 | CC32: =Tabla_territorialidad[[#This Row],[NO]]/2 -> 0.5 | CD32: 1
G33: RESPONSABILIDAD CIVIL | H33: RC PROFESIONAL CLINICAS Y HOSPITALES | I33: =Estructura[[#This Row],[RAMO SFC]]&"-"&Estructura[[#This Row],[COBERTURA]] -> RESPONSABILIDAD CIVIL-RC PROFESIONAL CLINICAS Y HOSPITALES | CA33: TOLIMA | CB33: 0 | CC33: =Tabla_territorialidad[[#This Row],[NO]]/2 -> 0 | CD33: 0
G34: RESPONSABILIDAD CIVIL | H34: RC PROFESIONAL MEDICA | I34: =Estructura[[#This Row],[RAMO SFC]]&"-"&Estructura[[#This Row],[COBERTURA]] -> RESPONSABILIDAD CIVIL-RC PROFESIONAL MEDICA | CA34: VALLE DEL CAUCA | CB34: 0 | CC34: =Tabla_territorialidad[[#This Row],[NO]]/2 -> -0.25 | CD34: -0.5
G35: RESPONSABILIDAD CIVIL | H35: RCE CLINICAS Y HOSPITALES | I35: =Estructura[[#This Row],[RAMO SFC]]&"-"&Estructura[[#This Row],[COBERTURA]] -> RESPONSABILIDAD CIVIL-RCE CLINICAS Y HOSPITALES
G36: RESPONSABILIDAD CIVIL | H36: RCE MEDICA | I36: =Estructura[[#This Row],[RAMO SFC]]&"-"&Estructura[[#This Row],[COBERTURA]] -> RESPONSABILIDAD CIVIL-RCE MEDICA
G37: RESPONSABILIDAD CIVIL | H37: RCE PATRONAL | I37: =Estructura[[#This Row],[RAMO SFC]]&"-"&Estructura[[#This Row],[COBERTURA]] -> RESPONSABILIDAD CIVIL-RCE PATRONAL
G38: RESPONSABILIDAD CIVIL | H38: RCE PROFESIONAL MEDICA | I38: =Estructura[[#This Row],[RAMO SFC]]&"-"&Estructura[[#This Row],[COBERTURA]] -> RESPONSABILIDAD CIVIL-RCE PROFESIONAL MEDICA

Sheet Intereses (hidden)
A1: Desde | B1: Hasta | C1: TIB corriente (%EA) por SFC | D1: Tasa Legal Usura (%EA) | E1: Número Dias | F1: TIB corriente (%EM) | G1: Tasa Legal Usura (%EM)
A2: 1997-09-01 | B2: 1997-09-30 | C2: 0.3184 | D2: 0.4776 | E2: 30 | F2: =(1+Intereses[[#This Row],[TIB corriente (%EA) por SFC]])^(1/12)-1 -> 0.02330225901 | G2: =(1+Intereses[[#This Row],[Tasa Legal Usura (%EA)]])^(1/12)-1 -> 0.03306997678
A3: 1997-10-01 | B3: 1997-10-31 | C3: 0.3133 | D3: 0.4699 | E3: 31 | F3: =(1+Intereses[[#This Row],[TIB corriente (%EA) por SFC]])^(1/12)-1 -> 0.02297180054 | G3: =(1+Intereses[[#This Row],[Tasa Legal Usura (%EA)]])^(1/12)-1 -> 0.03262027786
A4: 1997-11-01 | B4: 1997-11-30 | C4: 0.3147 | D4: 0.47205 | E4: 30 | F4: =(1+Intereses[[#This Row],[TIB corriente (%EA) por SFC]])^(1/12)-1 -> 0.0230626316 | G4: =(1+Intereses[[#This Row],[Tasa Legal Usura (%EA)]])^(1/12)-1 -> 0.03274606003
A5: 1997-12-01 | B5: 1997-12-31 | C5: 0.3174 | D5: 0.4761 | E5: 31 | F5: =(1+Intereses[[#This Row],[TIB corriente (%EA) por SFC]])^(1/12)-1 -> 0.0232375557 | G5: =(1+Intereses[[#This Row],[Tasa Legal Usura (%EA)]])^(1/12)-1 -> 0.03298254184
A6: 1998-01-01 | B6: 1998-01-31 | C6: 0.3169 | D6: 0.47535 | E6: 31 | F6: =(1+Intereses[[#This Row],[TIB corriente (%EA) por SFC]])^(1/12)-1 -> 0.02320518715 | G6: =(1+Intereses[[#This Row],[Tasa Legal Usura (%EA)]])^(1/12)-1 -> 0.03293879382
A7: 1998-02-01 | B7: 1998-02-28 | C7: 0.3256 | D7: 0.4884 | E7: 28 | F7: =(1+Intereses[[#This Row],[TIB corriente (%EA) por SFC]])^(1/12)-1 -> 0.02376679927 | G7: =(1+Intereses[[#This Row],[Tasa Legal Usura (%EA)]])^(1/12)-1 -> 0.03369711722
A8: 1998-03-01 | B8: 1998-03-31 | C8: 0.3215 | D8: 0.48225 | E8: 31 | F8: =(1+Intereses[[#This Row],[TIB corriente (%EA) por SFC]])^(1/12)-1 -> 0.02350255377 | G8: =(1+Intereses[[#This Row],[Tasa Legal Usura (%EA)]])^(1/12)-1 -> 0.03334050897
A9: 1998-04-01 | B9: 1998-04-30 | C9: 0.3628 | D9: 0.5442 | E9: 30 | F9: =(1+Intereses[[#This Row],[TIB corriente (%EA) por SFC]])^(1/12)-1 -> 0.02613069044 | G9: =(1+Intereses[[#This Row],[Tasa Legal Usura (%EA)]])^(1/12)-1 -> 0.0368723554
A10: 1998-05-01 | B10: 1998-05-31 | C10: 0.3839 | D10: 0.57585 | E10: 31 | F10: =(1+Intereses[[#This Row],[TIB corriente (%EA) por SFC]])^(1/12)-1 -> 0.02744533773 | G10: =(1+Intereses[[#This Row],[Tasa Legal Usura (%EA)]])^(1/12)-1 -> 0.03862691568
A11: 1998-06-01 | B11: 1998-06-30 | C11: 0.3951 | D11: 0.59265 | E11: 30 | F11: =(1+Intereses[[#This Row],[TIB corriente (%EA) por SFC]])^(1/12)-1 -> 0.02813571292 | G11: =(1+Intereses[[#This Row],[Tasa Legal Usura (%EA)]])^(1/12)-1 -> 0.03954516342
A12: 1998-07-01 | B12: 1998-07-31 | C12: 0.4783 | D12: 0.71745 | E12: 31 | F12: =(1+Intereses[[#This Row],[TIB corriente (%EA) por SFC]])^(1/12)-1 -> 0.03311075191 | G12: =(1+Intereses[[#This Row],[Tasa Legal Usura (%EA)]])^(1/12)-1 -> 0.04610113957
A13: 1998-08-01 | B13: 1998-08-31 | C13: 0.4841 | D13: 0.72615 | E13: 31 | F13: =(1+Intereses[[#This Row],[TIB corriente (%EA) por SFC]])^(1/12)-1 -> 0.03344792378 | G13: =(1+Intereses[[#This Row],[Tasa Legal Usura (%EA)]])^(1/12)-1 -> 0.04654171608
A14: 1998-09-01 | B14: 1998-09-30 | C14: 0.432 | D14: 0.648 | E14: 30 | F14: =(1+Intereses[[#This Row],[TIB corriente (%EA) por SFC]])^(1/12)-1 -> 0.03037485444 | G14: =(1+Intereses[[#This Row],[Tasa Legal Usura (%EA)]])^(1/12)-1 -> 0.04250889041
A15: 1998-10-01 | B15: 1998-10-31 | C15: 0.46 | D15: 0.69 | E15: 31 | F15: =(1+Intereses[[#This Row],[TIB corriente (%EA) por SFC]])^(1/12)-1 -> 0.0320389098 | G15: =(1+Intereses[[#This Row],[Tasa Legal Usura (%EA)]])^(1/12)-1 -> 0.04469750792
A16: 1998-11-01 | B16: 1998-11-30 | C16: 0.4999 | D16: 0.74985 | E16: 30 | F16: =(1+Intereses[[#This Row],[TIB corriente (%EA) por SFC]])^(1/12)-1 -> 0.03436033648 | G16: =(1+Intereses[[#This Row],[Tasa Legal Usura (%EA)]])^(1/12)-1 -> 0.04773166245
A17: 1998-12-01 | B17: 1998-12-31 | C17: 0.4771 | D17: 0.71565 | E17: 31 | F17: =(1+Intereses[[#This Row],[TIB corriente (%EA) por SFC]])^(1/12)-1 -> 0.03304084084 | G17: =(1+Intereses[[#This Row],[Tasa Legal Usura (%EA)]])^(1/12)-1 -> 0.04600973045
A18: 1999-01-01 | B18: 1999-01-31 | C18: 0.4549 | D18: 0.68235 | E18: 31 | F18: =(1+Intereses[[#This Row],[TIB corriente (%EA) por SFC]])^(1/12)-1 -> 0.03173800545 | G18: =(1+Intereses[[#This Row],[Tasa Legal Usura (%EA)]])^(1/12)-1 -> 0.04430260827
A19: 1999-02-01 | B19: 1999-02-28 | C19: 0.4239 | D19: 0.63585 | E19: 28 | F19: =(1+Intereses[[#This Row],[TIB corriente (%EA) por SFC]])^(1/12)-1 -> 0.02988790424 | G19: =(1+Intereses[[#This Row],[Tasa Legal Usura (%EA)]])^(1/12)-1 -> 0.04186621813
A20: 1999-03-01 | B20: 1999-03-14 | C20: 0.4099 | D20: 0.61485 | E20: 14 | F20: =(1+Intereses[[#This Row],[TIB corriente (%EA) por SFC]])^(1/12)-1 -> 0.02904024306 | G20: =(1+Intereses[[#This Row],[Tasa Legal Usura (%EA)]])^(1/12)-1 -> 0.04074503806
A21: 1999-03-15 | B21: 1999-03-31 | C21: 0.3976 | D21: 0.5964 | E21: 17 | F21: =(1+Intereses[[#This Row],[TIB corriente (%EA) por SFC]])^(1/12)-1 -> 0.02828912071 | G21: =(1+Intereses[[#This Row],[Tasa Legal Usura (%EA)]])^(1/12)-1 -> 0.0397489168
A22: 1999-04-01 | B22: 1999-04-30 | C22: 0.3357 | D22: 0.50355 | E22: 30 | F22: =(1+Intereses[[#This Row],[TIB corriente (%EA) por SFC]])^(1/12)-1 -> 0.02441456322 | G22: =(1+Intereses[[#This Row],[Tasa Legal Usura (%EA)]])^(1/12)-1 -> 0.03456986216
A23: 1999-05-01 | B23: 1999-05-31 | C23: 0.3114 | D23: 0.4671 | E23: 31 | F23: =(1+Intereses[[#This Row],[TIB corriente (%EA) por SFC]])^(1/12)-1 -> 0.02284838774 | G23: =(1+Intereses[[#This Row],[Tasa Legal Usura (%EA)]])^(1/12)-1 -> 0.03245621544
A24: 1999-06-01 | B24: 1999-06-30 | C24: 0.2746 | D24: 0.4119 | E24: 30 | F24: =(1+Intereses[[#This Row],[TIB corriente (%EA) por SFC]])^(1/12)-1 -> 0.02042516307 | G24: =(1+Intereses[[#This Row],[Tasa Legal Usura (%EA)]])^(1/12)-1 -> 0.02916180863
A25: 1999-07-01 | B25: 1999-07-31 | C25: 0.2422 | D25: 0.3633 | E25: 31 | F25: =(1+Intereses[[#This Row],[TIB corriente (%EA) por SFC]])^(1/12)-1 -> 0.01823798392 | G25: =(1+Intereses[[#This Row],[Tasa Legal Usura (%EA)]])^(1/12)-1 -> 0.0261620584
A26: 1999-08-01 | B26: 1999-08-31 | C26: 0.2625 | D26: 0.39375 | E26: 31 | F26: =(1+Intereses[[#This Row],[TIB corriente (%EA) por SFC]])^(1/12)-1 -> 0.01961437306 | G26: =(1+Intereses[[#This Row],[Tasa Legal Usura (%EA)]])^(1/12)-1 -> 0.02805276789
A27: 1999-09-01 | B27: 1999-09-30 | C27: 0.2601 | D27: 0.39015 | E27: 30 | F27: =(1+Intereses[[#This Row],[TIB corriente (%EA) por SFC]])^(1/12)-1 -> 0.01945270908 | G27: =(1+Intereses[[#This Row],[Tasa Legal Usura (%EA)]])^(1/12)-1 -> 0.02783122059
A28: 1999-10-01 | B28: 1999-10-31 | C28: 0.2696 | D28: 0.4044 | E28: 31 | F28: =(1+Intereses[[#This Row],[TIB corriente (%EA) por SFC]])^(1/12)-1 -> 0.02009098489 | G28: =(1+Intereses[[#This Row],[Tasa Legal Usura (%EA)]])^(1/12)-1 -> 0.02870512083
A29: 1999-11-01 | B29: 1999-11-30 | C29: 0.257 | D29: 0.3855 | E29: 30 | F29: =(1+Intereses[[#This Row],[TIB corriente (%EA) por SFC]])^(1/12)-1 -> 0.01924347487 | G29: =(1+Intereses[[#This Row],[Tasa Legal Usura (%EA)]])^(1/12)-1 -> 0.02754427564
A30: 1999-12-01 | B30: 1999-12-31 | C30: 0.2422 | D30: 0.3633 | E30: 31 | F30: =(1+Intereses[[#This Row],[TIB corriente (%EA) por SFC]])^(1/12)-1 -> 0.01823798392 | G30: =(1+Intereses[[#This Row],[Tasa Legal Usura (%EA)]])^(1/12)-1 -> 0.0261620584
A31: 2000-01-01 | B31: 2000-01-31 | C31: 0.224 | D31: 0.336 | E31: 31 | F31: =(1+Intereses[[#This Row],[TIB corriente (%EA) por SFC]])^(1/12)-1 -> 0.01698633664 | G31: =(1+Intereses[[#This Row],[Tasa Legal Usura (%EA)]])^(1/12)-1 -> 0.02443373499
A32: 2000-02-01 | B32: 2000-02-29 | C32: 0.1946 | D32: 0.2919 | E32: 29 | F32: =(1+Intereses[[#This Row],[TIB corriente (%EA) por SFC]])^(1/12)-1 -> 0.0149279419 | G32: =(1+Intereses[[#This Row],[Tasa Legal Usura (%EA)]])^(1/12)-1 -> 0.02157222087
A33: 2000-03-01 | B33: 2000-03-31 | C33: 0.1745 | D33: 0.26175 | E33: 31 | F33: =(1+Intereses[[#This Row],[TIB corriente (%EA) por SFC]])^(1/12)-1 -> 0.01349377394 | G33: =(1+Intereses[[#This Row],[Tasa Legal Usura (%EA)]])^(1/12)-1 -> 0.01956388335
A34: 2000-04-01 | B34: 2000-04-30 | C34: 0.1787 | D34: 0.26805 | E34: 30 | F34: =(1+Intereses[[#This Row],[TIB corriente (%EA) por SFC]])^(1/12)-1 -> 0.01379530034 | G34: =(1+Intereses[[#This Row],[Tasa Legal Usura (%EA)]])^(1/12)-1 -> 0.01998714467
A35: 2000-05-01 | B35: 2000-05-31 | C35: 0.179 | D35: 0.2685 | E35: 31 | F35: =(1+Intereses[[#This Row],[TIB corriente (%EA) por SFC]])^(1/12)-1 -> 0.01381680023 | G35: =(1+Intereses[[#This Row],[Tasa Legal Usura (%EA)]])^(1/12)-1 -> 0.02001730381
A36: 2000-06-01 | B36: 2000-06-30 | C36: 0.1977 | D36: 0.29655 | E36: 30 | F36: =(1+Intereses[[#This Row],[TIB corriente (%EA) por SFC]])^(1/12)-1 -> 0.01514716038 | G36: =(1+Intereses[[#This Row],[Tasa Legal Usura (%EA)]])^(1/12)-1 -> 0.02187813285
A37: 2000-07-01 | B37: 2000-07-31 | C37: 0.1944 | D37: 0.2916 | E37: 31 | F37: =(1+Intereses[[#This Row],[TIB corriente (%EA) por SFC]])^(1/12)-1 -> 0.01491378088 | G37: =(1+Intereses[[#This Row],[Tasa Legal Usura (%EA)]])^(1/12)-1 -> 0.02155244997
A38: 2000-08-01 | B38: 2000-08-31 | C38: 0.1992 | D38: 0.2988 | E38: 31 | F38: =(1+Intereses[[#This Row],[TIB corriente (%EA) por SFC]])^(1/12)-1 -> 0.01525304718 | G38: =(1+Intereses[[#This Row],[Tasa Legal Usura (%EA)]])^(1/12)-1 -> 0.02202579389
A39: 2000-09-01 | B39: 2000-09-30 | C39: 0.2293 | D39: 0.34395 | E39: 30 | F39: =(1+Intereses[[#This Row],[TIB corriente (%EA) por SFC]])^(1/12)-1 -> 0.01735257846 | G39: =(1+Intereses[[#This Row],[Tasa Legal Usura (%EA)]])^(1/12)-1 -> 0.02494035425
A40: 2000-10-01 | B40: 2000-10-31 | C40: 0.2308 | D40: 0.3462 | E40: 31 | F40: =(1+Intereses[[#This Row],[TIB corriente (%EA) por SFC]])^(1/12)-1 -> 0.01745596902 | G40: =(1+Intereses[[#This Row],[Tasa Legal Usura (%EA)]])^(1/12)-1 -> 0.02508323829
A41: 2000-11-01 | B41: 2000-11-30 | C41: 0.238 | D41: 0.357 | E41: 30 | F41: =(1+Intereses[[#This Row],[TIB corriente (%EA) por SFC]])^(1/12)-1 -> 0.01795064149 | G41: =(1+Intereses[[#This Row],[Tasa Legal Usura (%EA)]])^(1/12)-1 -> 0.02576604908
A42: 2000-12-01 | B42: 2000-12-31 | C42: 0.2369 | D42: 0.35535 | E42: 31 | F42: =(1+Intereses[[#This Row],[TIB corriente (%EA) por SFC]])^(1/12)-1 -> 0.01787523748 | G42: =(1+Intereses[[#This Row],[Tasa Legal Usura (%EA)]])^(1/12)-1 -> 0.02566205387
A43: 2001-01-01 | B43: 2001-01-31 | C43: 0.2416 | D43: 0.3624 | E43: 31 | F43: =(1+Intereses[[#This Row],[TIB corriente (%EA) por SFC]])^(1/12)-1 -> 0.01819698958 | G43: =(1+Intereses[[#This Row],[Tasa Legal Usura (%EA)]])^(1/12)-1 -> 0.02610558848
A44: 2001-02-01 | B44: 2001-02-28 | C44: 0.2603 | D44: 0.39045 | E44: 28 | F44: =(1+Intereses[[#This Row],[TIB corriente (%EA) por SFC]])^(1/12)-1 -> 0.01946619186 | G44: =(1+Intereses[[#This Row],[Tasa Legal Usura (%EA)]])^(1/12)-1 -> 0.02784970294
A45: 2001-03-01 | B45: 2001-03-31 | C45: 0.2511 | D45: 0.37665 | E45: 31 | F45: =(1+Intereses[[#This Row],[TIB corriente (%EA) por SFC]])^(1/12)-1 -> 0.01884394475 | G45: =(1+Intereses[[#This Row],[Tasa Legal Usura (%EA)]])^(1/12)-1 -> 0.02699570718
A46: 2001-04-01 | B46: 2001-04-30 | C46: 0.2483 | D46: 0.37245 | E46: 30 | F46: =(1+Intereses[[#This Row],[TIB corriente (%EA) por SFC]])^(1/12)-1 -> 0.01865373257 | G46: =(1+Intereses[[#This Row],[Tasa Legal Usura (%EA)]])^(1/12)-1 -> 0.02673423759
A47: 2001-05-01 | B47: 2001-05-31 | C47: 0.2424 | D47: 0.3636 | E47: 31 | F47: =(1+Intereses[[#This Row],[TIB corriente (%EA) por SFC]])^(1/12)-1 -> 0.01825164467 | G47: =(1+Intereses[[#This Row],[Tasa Legal Usura (%EA)]])^(1/12)-1 -> 0.02618087412
A48: 2001-06-01 | B48: 2001-06-30 | C48: 0.2517 | D48: 0.37755 | E48: 30 | F48: =(1+Intereses[[#This Row],[TIB corriente (%EA) por SFC]])^(1/12)-1 -> 0.01888465373 | G48: =(1+Intereses[[#This Row],[Tasa Legal Usura (%EA)]])^(1/12)-1 -> 0.02705164123
A49: 2001-07-01 | B49: 2001-07-31 | C49: 0.2608 | D49: 0.3912 | E49: 31 | F49: =(1+Intereses[[#This Row],[TIB corriente (%EA) por SFC]])^(1/12)-1 -> 0.01949989021 | G49: =(1+Intereses[[#This Row],[Tasa Legal Usura (%EA)]])^(1/12)-1 -> 0.02789589283
A50: 2001-08-01 | B50: 2001-08-31 | C50: 0.2425 | D50: 0.36375 | E50: 31 | F50: =(1+Intereses[[#This Row],[TIB corriente (%EA) por SFC]])^(1/12)-1 -> 0.01825847429 | G50: =(1+Intereses[[#This Row],[Tasa Legal Usura (%EA)]])^(1/12)-1 -> 0.02619028055
A51: 2001-09-01 | B51: 2001-09-30 | C51: 0.2306 | D51: 0.3459 | E51: 30 | F51: =(1+Intereses[[#This Row],[TIB corriente (%EA) por SFC]])^(1/12)-1 -> 0.01744219029 | G51: =(1+Intereses[[#This Row],[Tasa Legal Usura (%EA)]])^(1/12)-1 -> 0.02506419974
A52: 2001-10-01 | B52: 2001-10-31 | C52: 0.2322 | D52: 0.3483 | E52: 31 | F52: =(1+Intereses[[#This Row],[TIB corriente (%EA) por SFC]])^(1/12)-1 -> 0.01755236271 | G52: =(1+Intereses[[#This Row],[Tasa Legal Usura (%EA)]])^(1/12)-1 -> 0.02521639936
A53: 2001-11-01 | B53: 2001-11-30 | C53: 0.2298 | D53: 0.3447 | E53: 30 | F53: =(1+Intereses[[#This Row],[TIB corriente (%EA) por SFC]])^(1/12)-1 -> 0.01738705483 | G53: =(1+Intereses[[#This Row],[Tasa Legal Usura (%EA)]])^(1/12)-1 -> 0.02498800661
A54: 2001-12-01 | B54: 2001-12-31 | C54: 0.2248 | D54: 0.3372 | E54: 31 | F54: =(1+Intereses[[#This Row],[TIB corriente (%EA) por SFC]])^(1/12)-1 -> 0.01704171146 | G54: =(1+Intereses[[#This Row],[Tasa Legal Usura (%EA)]])^(1/12)-1 -> 0.02451038261
A55: 2002-01-01 | B55: 2002-01-31 | C55: 0.2281 | D55: 0.34215 | E55: 31 | F55: =(1+Intereses[[#This Row],[TIB corriente (%EA) por SFC]])^(1/12)-1 -> 0.01726978272 | G55: =(1+Intereses[[#This Row],[Tasa Legal Usura (%EA)]])^(1/12)-1 -> 0.02482588904
A56: 2002-02-01 | B56: 2002-02-28 | C56: 0.2235 | D56: 0.33525 | E56: 28 | F56: =(1+Intereses[[#This Row],[TIB corriente (%EA) por SFC]])^(1/12)-1 -> 0.01695171052 | G56: =(1+Intereses[[#This Row],[Tasa Legal Usura (%EA)]])^(1/12)-1 -> 0.02438579817
A57: 2002-03-01 | B57: 2002-03-31 | C57: 0.2097 | D57: 0.31455 | E57: 31 | F57: =(1+Intereses[[#This Row],[TIB corriente (%EA) por SFC]])^(1/12)-1 -> 0.01599087341 | G57: =(1+Intereses[[#This Row],[Tasa Legal Usura (%EA)]])^(1/12)-1 -> 0.02305290395
A58: 2002-04-01 | B58: 2002-04-30 | C58: 0.2103 | D58: 0.31545 | E58: 30 | F58: =(1+Intereses[[#This Row],[TIB corriente (%EA) por SFC]])^(1/12)-1 -> 0.01603285737 | G58: =(1+Intereses[[#This Row],[Tasa Legal Usura (%EA)]])^(1/12)-1 -> 0.02311125464
A59: 2002-05-01 | B59: 2002-05-31 | C59: 0.2 | D59: 0.3 | E59: 31 | F59: =(1+Intereses[[#This Row],[TIB corriente (%EA) por SFC]])^(1/12)-1 -> 0.0153094705 | G59: =(1+Intereses[[#This Row],[Tasa Legal Usura (%EA)]])^(1/12)-1 -> 0.02210445059
A60: 2002-06-01 | B60: 2002-06-30 | C60: 0.1996 | D60: 0.2994 | E60: 30 | F60: =(1+Intereses[[#This Row],[TIB corriente (%EA) por SFC]])^(1/12)-1 -> 0.01528126315 | G60: =(1+Intereses[[#This Row],[Tasa Legal Usura (%EA)]])^(1/12)-1 -> 0.02206513057
A61: 2002-07-01 | B61: 2002-07-31 | C61: 0.1977 | D61: 0.29655 | E61: 31 | F61: =(1+Intereses[[#This Row],[TIB corriente (%EA) por SFC]])^(1/12)-1 -> 0.01514716038 | G61: =(1+Intereses[[#This Row],[Tasa Legal Usura (%EA)]])^(1/12)-1 -> 0.02187813285
A62: 2002-08-01 | B62: 2002-08-31 | C62: 0.2001 | D62: 0.30015 | E62: 31 | F62: =(1+Intereses[[#This Row],[TIB corriente (%EA) por SFC]])^(1/12)-1 -> 0.01531652099 | G62: =(1+Intereses[[#This Row],[Tasa Legal Usura (%EA)]])^(1/12)-1 -> 0.022114278
A63: 2002-09-01 | B63: 2002-09-30 | C63: 0.2018 | D63: 0.3027 | E63: 30 | F63: =(1+Intereses[[#This Row],[TIB corriente (%EA) por SFC]])^(1/12)-1 -> 0.01543629701 | G63: =(1+Intereses[[#This Row],[Tasa Legal Usura (%EA)]])^(1/12)-1 -> 0.02228118511
A64: 2002-10-01 | B64: 2002-10-31 | C64: 0.203 | D64: 0.3045 | E64: 31 | F64: =(1+Intereses[[#This Row],[TIB corriente (%EA) por SFC]])^(1/12)-1 -> 0.01552075132 | G64: =(1+Intereses[[#This Row],[Tasa Legal Usura (%EA)]])^(1/12)-1 -> 0.02239882168
A65: 2002-11-01 | B65: 2002-11-30 | C65: 0.1976 | D65: 0.2964 | E65: 30 | F65: =(1+Intereses[[#This Row],[TIB corriente (%EA) por SFC]])^(1/12)-1 -> 0.01514009694 | G65: =(1+Intereses[[#This Row],[Tasa Legal Usura (%EA)]])^(1/12)-1 -> 0.02186828043
A66: 2002-12-01 | B66: 2002-12-31 | C66: 0.1969 | D66: 0.29535 | E66: 31 | F66: =(1+Intereses[[#This Row],[TIB corriente (%EA) por SFC]])^(1/12)-1 -> 0.01509063771 | G66: =(1+Intereses[[#This Row],[Tasa Legal Usura (%EA)]])^(1/12)-1 -> 0.02179928422
A67: 2003-01-01 | B67: 2003-01-31 | C67: 0.1964 | D67: 0.2946 | E67: 31 | F67: =(1+Intereses[[#This Row],[TIB corriente (%EA) por SFC]])^(1/12)-1 -> 0.01505529345 | G67: =(1+Intereses[[#This Row],[Tasa Legal Usura (%EA)]])^(1/12)-1 -> 0.02174996982
A68: 2003-02-01 | B68: 2003-02-28 | C68: 0.1978 | D68: 0.2967 | E68: 28 | F68: =(1+Intereses[[#This Row],[TIB corriente (%EA) por SFC]])^(1/12)-1 -> 0.01515422328 | G68: =(1+Intereses[[#This Row],[Tasa Legal Usura (%EA)]])^(1/12)-1 -> 0.02188798422
A69: 2003-03-01 | B69: 2003-03-31 | C69: 0.1949 | D69: 0.29235 | E69: 31 | F69: =(1+Intereses[[#This Row],[TIB corriente (%EA) por SFC]])^(1/12)-1 -> 0.01494917937 | G69: =(1+Intereses[[#This Row],[Tasa Legal Usura (%EA)]])^(1/12)-1 -> 0.02160186933
A70: 2003-04-01 | B70: 2003-04-30 | C70: 0.1981 | D70: 0.29715 | E70: 30 | F70: =(1+Intereses[[#This Row],[TIB corriente (%EA) por SFC]])^(1/12)-1 -> 0.01517540874 | G70: =(1+Intereses[[#This Row],[Tasa Legal Usura (%EA)]])^(1/12)-1 -> 0.02191753208
A71: 2003-05-01 | B71: 2003-05-31 | C71: 0.1989 | D71: 0.29835 | E71: 31 | F71: =(1+Intereses[[#This Row],[TIB corriente (%EA) por SFC]])^(1/12)-1 -> 0.01523187953 | G71: =(1+Intereses[[#This Row],[Tasa Legal Usura (%EA)]])^(1/12)-1 -> 0.02199628045
A72: 2003-06-01 | B72: 2003-06-30 | C72: 0.192 | D72: 0.288 | E72: 30 | F72: =(1+Intereses[[#This Row],[TIB corriente (%EA) por SFC]])^(1/12)-1 -> 0.01474367879 | G72: =(1+Intereses[[#This Row],[Tasa Legal Usura (%EA)]])^(1/12)-1 -> 0.02131487028
A73: 2003-07-01 | B73: 2003-07-31 | C73: 0.1944 | D73: 0.2916 | E73: 31 | F73: =(1+Intereses[[#This Row],[TIB corriente (%EA) por SFC]])^(1/12)-1 -> 0.01491378088 | G73: =(1+Intereses[[#This Row],[Tasa Legal Usura (%EA)]])^(1/12)-1 -> 0.02155244997
A74: 2003-08-01 | B74: 2003-08-31 | C74: 0.1988 | D74: 0.2982 | E74: 31 | F74: =(1+Intereses[[#This Row],[TIB corriente (%EA) por SFC]])^(1/12)-1 -> 0.01522482257 | G74: =(1+Intereses[[#This Row],[Tasa Legal Usura (%EA)]])^(1/12)-1 -> 0.02198644055
A75: 2003-09-01 | B75: 2003-09-30 | C75: 0.2012 | D75: 0.3018 | E75: 30 | F75: =(1+Intereses[[#This Row],[TIB corriente (%EA) por SFC]])^(1/12)-1 -> 0.01539404087 | G75: =(1+Intereses[[#This Row],[Tasa Legal Usura (%EA)]])^(1/12)-1 -> 0.02222231095
A76: 2003-10-01 | B76: 2003-10-31 | C76: 0.2004 | D76: 0.3006 | E76: 31 | F76: =(1+Intereses[[#This Row],[TIB corriente (%EA) por SFC]])^(1/12)-1 -> 0.01533766923 | G76: =(1+Intereses[[#This Row],[Tasa Legal Usura (%EA)]])^(1/12)-1 -> 0.02214375399
A77: 2003-11-01 | B77: 2003-11-30 | C77: 0.1987 | D77: 0.298 | E77: 30 | F77: =(1+Intereses[[#This Row],[TIB corriente (%EA) por SFC]])^(1/12)-1 -> 0.01521776507 | G77: =(1+Intereses[[#This Row],[Tasa Legal Usura (%EA)]])^(1/12)-1 -> 0.02197331907
A78: 2003-12-01 | B78: 2003-12-31 | C78: 0.1981 | D78: 0.29715 | E78: 31 | F78: =(1+Intereses[[#This Row],[TIB corriente (%EA) por SFC]])^(1/12)-1 -> 0.01517540874 | G78: =(1+Intereses[[#This Row],[Tasa Legal Usura (%EA)]])^(1/12)-1 -> 0.02191753208
A79: 2004-01-01 | B79: 2004-01-31 | C79: 0.1967 | D79: 0.295 | E79: 31 | F79: =(1+Intereses[[#This Row],[TIB corriente (%EA) por SFC]])^(1/12)-1 -> 0.01507650163 | G79: =(1+Intereses[[#This Row],[Tasa Legal Usura (%EA)]])^(1/12)-1 -> 0.02177627409
A80: 2004-02-01 | B80: 2004-02-29 | C80: 0.1974 | D80: 0.2961 | E80: 29 | F80: =(1+Intereses[[#This Row],[TIB corriente (%EA) por SFC]])^(1/12)-1 -> 0.01512596844 | G80: =(1+Intereses[[#This Row],[Tasa Legal Usura (%EA)]])^(1/12)-1 -> 0.02184857246
A81: 2004-03-01 | B81: 2004-03-31 | C81: 0.198 | D81: 0.297 | E81: 31 | F81: =(1+Intereses[[#This Row],[TIB corriente (%EA) por SFC]])^(1/12)-1 -> 0.01516834746 | G81: =(1+Intereses[[#This Row],[Tasa Legal Usura (%EA)]])^(1/12)-1 -> 0.02190768384
A82: 2004-04-01 | B82: 2004-04-30 | C82: 0.1978 | D82: 0.2967 | E82: 30 | F82: =(1+Intereses[[#This Row],[TIB corriente (%EA) por SFC]])^(1/12)-1 -> 0.01515422328 | G82: =(1+Intereses[[#This Row],[Tasa Legal Usura (%EA)]])^(1/12)-1 -> 0.02188798422
A83: 2004-05-01 | B83: 2004-05-31 | C83: 0.1971 | D83: 0.2956 | E83: 31 | F83: =(1+Intereses[[#This Row],[TIB corriente (%EA) por SFC]])^(1/12)-1 -> 0.01510477162 | G83: =(1+Intereses[[#This Row],[Tasa Legal Usura (%EA)]])^(1/12)-1 -> 0.02181571654
A84: 2004-06-01 | B84: 2004-06-30 | C84: 0.1967 | D84: 0.295 | E84: 30 | F84: =(1+Intereses[[#This Row],[TIB corriente (%EA) por SFC]])^(1/12)-1 -> 0.01507650163 | G84: =(1+Intereses[[#This Row],[Tasa Legal Usura (%EA)]])^(1/12)-1 -> 0.02177627409
A85: 2004-07-01 | B85: 2004-07-31 | C85: 0.1944 | D85: 0.2916 | E85: 31 | F85: =(1+Intereses[[#This Row],[TIB corriente (%EA) por SFC]])^(1/12)-1 -> 0.01491378088 | G85: =(1+Intereses[[#This Row],[Tasa Legal Usura (%EA)]])^(1/12)-1 -> 0.02155244997
A86: 2004-08-01 | B86: 2004-08-31 | C86: 0.1928 | D86: 0.2892 | E86: 31 | F86: =(1+Intereses[[#This Row],[TIB corriente (%EA) por SFC]])^(1/12)-1 -> 0.01480041434 | G86: =(1+Intereses[[#This Row],[Tasa Legal Usura (%EA)]])^(1/12)-1 -> 0.02139413107
A87: 2004-09-01 | B87: 2004-09-30 | C87: 0.195 | D87: 0.2925 | E87: 30 | F87: =(1+Intereses[[#This Row],[TIB corriente (%EA) por SFC]])^(1/12)-1 -> 0.01495625744 | G87: =(1+Intereses[[#This Row],[Tasa Legal Usura (%EA)]])^(1/12)-1 -> 0.02161175005
A88: 2004-10-01 | B88: 2004-10-31 | C88: 0.1909 | D88: 0.2863 | E88: 31 | F88: =(1+Intereses[[#This Row],[TIB corriente (%EA) por SFC]])^(1/12)-1 -> 0.01466561038 | G88: =(1+Intereses[[#This Row],[Tasa Legal Usura (%EA)]])^(1/12)-1 -> 0.0212024682
A89: 2004-11-01 | B89: 2004-11-30 | C89: 0.1959 | D89: 0.29385 | E89: 30 | F89: =(1+Intereses[[#This Row],[TIB corriente (%EA) por SFC]])^(1/12)-1 -> 0.01501993565 | G89: =(1+Intereses[[#This Row],[Tasa Legal Usura (%EA)]])^(1/12)-1 -> 0.02170062923
A90: 2004-12-01 | B90: 2004-12-31 | C90: 0.1949 | D90: 0.2923 | E90: 31 | F90: =(1+Intereses[[#This Row],[TIB corriente (%EA) por SFC]])^(1/12)-1 -> 0.01494917937 | G90: =(1+Intereses[[#This Row],[Tasa Legal Usura (%EA)]])^(1/12)-1 -> 0.02159857553
A91: 2005-01-01 | B91: 2005-01-31 | C91: 0.1945 | D91: 0.29175 | E91: 31 | F91: =(1+Intereses[[#This Row],[TIB corriente (%EA) por SFC]])^(1/12)-1 -> 0.01492086166 | G91: =(1+Intereses[[#This Row],[Tasa Legal Usura (%EA)]])^(1/12)-1 -> 0.02156233595
A92: 2005-02-01 | B92: 2005-02-28 | C92: 0.194 | D92: 0.291 | E92: 28 | F92: =(1+Intereses[[#This Row],[TIB corriente (%EA) por SFC]])^(1/12)-1 -> 0.0148854523 | G92: =(1+Intereses[[#This Row],[Tasa Legal Usura (%EA)]])^(1/12)-1 -> 0.02151289554
A93: 2005-03-01 | B93: 2005-03-31 | C93: 0.1915 | D93: 0.28725 | E93: 31 | F93: =(1+Intereses[[#This Row],[TIB corriente (%EA) por SFC]])^(1/12)-1 -> 0.01470820134 | G93: =(1+Intereses[[#This Row],[Tasa Legal Usura (%EA)]])^(1/12)-1 -> 0.0212652979
A94: 2005-04-01 | B94: 2005-04-30 | C94: 0.1919 | D94: 0.28785 | E94: 30 | F94: =(1+Intereses[[#This Row],[TIB corriente (%EA) por SFC]])^(1/12)-1 -> 0.01473658439 | G94: =(1+Intereses[[#This Row],[Tasa Legal Usura (%EA)]])^(1/12)-1 -> 0.02130495792
A95: 2005-05-01 | B95: 2005-05-31 | C95: 0.1902 | D95: 0.2853 | E95: 31 | F95: =(1+Intereses[[#This Row],[TIB corriente (%EA) por SFC]])^(1/12)-1 -> 0.01461589607 | G95: =(1+Intereses[[#This Row],[Tasa Legal Usura (%EA)]])^(1/12)-1 -> 0.0211362857
A96: 2005-06-01 | B96: 2005-06-30 | C96: 0.1885 | D96: 0.28275 | E96: 30 | F96: =(1+Intereses[[#This Row],[TIB corriente (%EA) por SFC]])^(1/12)-1 -> 0.01449504963 | G96: =(1+Intereses[[#This Row],[Tasa Legal Usura (%EA)]])^(1/12)-1 -> 0.02096730646
A97: 2005-07-01 | B97: 2005-07-31 | C97: 0.185 | D97: 0.2775 | E97: 31 | F97: =(1+Intereses[[#This Row],[TIB corriente (%EA) por SFC]])^(1/12)-1 -> 0.01424574839 | G97: =(1+Intereses[[#This Row],[Tasa Legal Usura (%EA)]])^(1/12)-1 -> 0.02061843623
A98: 2005-08-01 | B98: 2005-08-31 | C98: 0.1824 | D98: 0.2736 | E98: 31 | F98: =(1+Intereses[[#This Row],[TIB corriente (%EA) por SFC]])^(1/12)-1 -> 0.01406011586 | G98: =(1+Intereses[[#This Row],[Tasa Legal Usura (%EA)]])^(1/12)-1 -> 0.02035842369
A99: 2005-09-01 | B99: 2005-09-30 | C99: 0.1822 | D99: 0.2733 | E99: 30 | F99: =(1+Intereses[[#This Row],[TIB corriente (%EA) por SFC]])^(1/12)-1 -> 0.01404582094 | G99: =(1+Intereses[[#This Row],[Tasa Legal Usura (%EA)]])^(1/12)-1 -> 0.0203383925
A100: 2005-10-01 | B100: 2005-10-31 | C100: 0.1793 | D100: 0.26895 | E100: 31 | F100: =(1+Intereses[[#This Row],[TIB corriente (%EA) por SFC]])^(1/12)-1 -> 0.01383829511 | G100: =(1+Intereses[[#This Row],[Tasa Legal Usura (%EA)]])^(1/12)-1 -> 0.02004745314
A101: 2005-11-01 | B101: 2005-11-30 | C101: 0.1781 | D101: 0.26715 | E101: 30 | F101: =(1+Intereses[[#This Row],[TIB corriente (%EA) por SFC]])^(1/12)-1 -> 0.01375228549 | G101: =(1+Intereses[[#This Row],[Tasa Legal Usura (%EA)]])^(1/12)-1 -> 0.01992679694
A102: 2005-12-01 | B102: 2005-12-31 | C102: 0.1749 | D102: 0.26235 | E102: 31 | F102: =(1+Intereses[[#This Row],[TIB corriente (%EA) por SFC]])^(1/12)-1 -> 0.01352253328 | G102: =(1+Intereses[[#This Row],[Tasa Legal Usura (%EA)]])^(1/12)-1 -> 0.01960427732
A103: 2006-01-01 | B103: 2006-01-31 | C103: 0.1735 | D103: 0.26025 | E103: 31 | F103: =(1+Intereses[[#This Row],[TIB corriente (%EA) por SFC]])^(1/12)-1 -> 0.01342183627 | G103: =(1+Intereses[[#This Row],[Tasa Legal Usura (%EA)]])^(1/12)-1 -> 0.01946282135
A104: 2006-02-01 | B104: 2006-02-28 | C104: 0.1751 | D104: 0.26265 | E104: 28 | F104: =(1+Intereses[[#This Row],[TIB corriente (%EA) por SFC]])^(1/12)-1 -> 0.01353690959 | G104: =(1+Intereses[[#This Row],[Tasa Legal Usura (%EA)]])^(1/12)-1 -> 0.0196244677
A105: 2006-03-01 | B105: 2006-03-31 | C105: 0.1725 | D105: 0.25875 | E105: 31 | F105: =(1+Intereses[[#This Row],[TIB corriente (%EA) por SFC]])^(1/12)-1 -> 0.01334984239 | G105: =(1+Intereses[[#This Row],[Tasa Legal Usura (%EA)]])^(1/12)-1 -> 0.01936164902
A106: 2006-04-01 | B106: 2006-04-30 | C106: 0.1675 | D106: 0.25125 | E106: 30 | F106: =(1+Intereses[[#This Row],[TIB corriente (%EA) por SFC]])^(1/12)-1 -> 0.01298902651 | G106: =(1+Intereses[[#This Row],[Tasa Legal Usura (%EA)]])^(1/12)-1 -> 0.01885412367
A107: 2006-05-01 | B107: 2006-05-31 | C107: 0.1607 | D107: 0.24105 | E107: 31 | F107: =(1+Intereses[[#This Row],[TIB corriente (%EA) por SFC]])^(1/12)-1 -> 0.01249603703 | G107: =(1+Intereses[[#This Row],[Tasa Legal Usura (%EA)]])^(1/12)-1 -> 0.01815939547
A108: 2006-06-01 | B108: 2006-06-30 | C108: 0.1561 | D108: 0.23415 | E108: 30 | F108: =(1+Intereses[[#This Row],[TIB corriente (%EA) por SFC]])^(1/12)-1 -> 0.01216104068 | G108: =(1+Intereses[[#This Row],[Tasa Legal Usura (%EA)]])^(1/12)-1 -> 0.01768645819
A109: 2006-07-01 | B109: 2006-07-31 | C109: 0.1508 | D109: 0.2262 | E109: 31 | F109: =(1+Intereses[[#This Row],[TIB corriente (%EA) por SFC]])^(1/12)-1 -> 0.01177354837 | G109: =(1+Intereses[[#This Row],[Tasa Legal Usura (%EA)]])^(1/12)-1 -> 0.01713853768
A110: 2006-08-01 | B110: 2006-08-31 | C110: 0.1502 | D110: 0.2253 | E110: 31 | F110: =(1+Intereses[[#This Row],[TIB corriente (%EA) por SFC]])^(1/12)-1 -> 0.01172957829 | G110: =(1+Intereses[[#This Row],[Tasa Legal Usura (%EA)]])^(1/12)-1 -> 0.0170763039
A111: 2006-09-01 | B111: 2006-09-30 | C111: 0.1505 | D111: 0.22575 | E111: 30 | F111: =(1+Intereses[[#This Row],[TIB corriente (%EA) por SFC]])^(1/12)-1 -> 0.01175156595 | G111: =(1+Intereses[[#This Row],[Tasa Legal Usura (%EA)]])^(1/12)-1 -> 0.01710742602
A112: 2006-10-01 | B112: 2006-10-31 | C112: 0.1507 | D112: 0.22605 | E112: 31 | F112: =(1+Intereses[[#This Row],[TIB corriente (%EA) por SFC]])^(1/12)-1 -> 0.01176622148 | G112: =(1+Intereses[[#This Row],[Tasa Legal Usura (%EA)]])^(1/12)-1 -> 0.01712816829
A113: 2006-11-01 | B113: 2006-11-30 | C113: 0.1507 | D113: 0.22605 | E113: 30 | F113: =(1+Intereses[[#This Row],[TIB corriente (%EA) por SFC]])^(1/12)-1 -> 0.01176622148 | G113: =(1+Intereses[[#This Row],[Tasa Legal Usura (%EA)]])^(1/12)-1 -> 0.01712816829
A114: 2006-12-01 | B114: 2006-12-31 | C114: 0.1507 | D114: 0.22605 | E114: 31 | F114: =(1+Intereses[[#This Row],[TIB corriente (%EA) por SFC]])^(1/12)-1 -> 0.01176622148 | G114: =(1+Intereses[[#This Row],[Tasa Legal Usura (%EA)]])^(1/12)-1 -> 0.01712816829
A115: 2007-01-01 | B115: 2007-01-31 | C115: 0.1383 | D115: 0.2075 | E115: 31 | F115: =(1+Intereses[[#This Row],[TIB corriente (%EA) por SFC]])^(1/12)-1 -> 0.01085313266 | G115: =(1+Intereses[[#This Row],[Tasa Legal Usura (%EA)]])^(1/12)-1 -> 0.01583676873
A116: 2007-02-01 | B116: 2007-02-28 | C116: 0.1383 | D116: 0.2075 | E116: 28 | F116: =(1+Intereses[[#This Row],[TIB corriente (%EA) por SFC]])^(1/12)-1 -> 0.01085313266 | G116: =(1+Intereses[[#This Row],[Tasa Legal Usura (%EA)]])^(1/12)-1 -> 0.01583676873
A117: 2007-03-01 | B117: 2007-03-31 | C117: 0.1383 | D117: 0.2075 | E117: 31 | F117: =(1+Intereses[[#This Row],[TIB corriente (%EA) por SFC]])^(1/12)-1 -> 0.01085313266 | G117: =(1+Intereses[[#This Row],[Tasa Legal Usura (%EA)]])^(1/12)-1 -> 0.01583676873
A118: 2007-04-01 | B118: 2007-04-30 | C118: 0.1675 | D118: 0.2512 | E118: 30 | F118: =(1+Intereses[[#This Row],[TIB corriente (%EA) por SFC]])^(1/12)-1 -> 0.01298902651 | G118: =(1+Intereses[[#This Row],[Tasa Legal Usura (%EA)]])^(1/12)-1 -> 0.01885073082
A119: 2007-05-01 | B119: 2007-05-31 | C119: 0.1675 | D119: 0.2512 | E119: 31 | F119: =(1+Intereses[[#This Row],[TIB corriente (%EA) por SFC]])^(1/12)-1 -> 0.01298902651 | G119: =(1+Intereses[[#This Row],[Tasa Legal Usura (%EA)]])^(1/12)-1 -> 0.01885073082
A120: 2007-06-01 | B120: 2007-06-30 | C120: 0.1675 | D120: 0.2512 | E120: 30 | F120: =(1+Intereses[[#This Row],[TIB corriente (%EA) por SFC]])^(1/12)-1 -> 0.01298902651 | G120: =(1+Intereses[[#This Row],[Tasa Legal Usura (%EA)]])^(1/12)-1 -> 0.01885073082
A121: 2007-07-01 | B121: 2007-07-31 | C121: 0.1901 | D121: 0.2851 | E121: 31 | F121: =(1+Intereses[[#This Row],[TIB corriente (%EA) por SFC]])^(1/12)-1 -> 0.01460879183 | G121: =(1+Intereses[[#This Row],[Tasa Legal Usura (%EA)]])^(1/12)-1 -> 0.02112304354
A122: 2007-08-01 | B122: 2007-08-31 | C122: 0.1901 | D122: 0.2851 | E122: 31 | F122: =(1+Intereses[[#This Row],[TIB corriente (%EA) por SFC]])^(1/12)-1 -> 0.01460879183 | G122: =(1+Intereses[[#This Row],[Tasa Legal Usura (%EA)]])^(1/12)-1 -> 0.02112304354
A123: 2007-09-01 | B123: 2007-09-30 | C123: 0.1901 | D123: 0.2851 | E123: 30 | F123: =(1+Intereses[[#This Row],[TIB corriente (%EA) por SFC]])^(1/12)-1 -> 0.01460879183 | G123: =(1+Intereses[[#This Row],[Tasa Legal Usura (%EA)]])^(1/12)-1 -> 0.02112304354
A124: 2007-10-01 | B124: 2007-10-31 | C124: 0.2126 | D124: 0.3189 | E124: 31 | F124: =(1+Intereses[[#This Row],[TIB corriente (%EA) por SFC]])^(1/12)-1 -> 0.01619361934 | G124: =(1+Intereses[[#This Row],[Tasa Legal Usura (%EA)]])^(1/12)-1 -> 0.0233345938
A125: 2007-11-01 | B125: 2007-11-30 | C125: 0.2126 | D125: 0.3189 | E125: 30 | F125: =(1+Intereses[[#This Row],[TIB corriente (%EA) por SFC]])^(1/12)-1 -> 0.01619361934 | G125: =(1+Intereses[[#This Row],[Tasa Legal Usura (%EA)]])^(1/12)-1 -> 0.0233345938
A126: 2007-12-01 | B126: 2007-12-31 | C126: 0.2126 | D126: 0.3189 | E126: 31 | F126: =(1+Intereses[[#This Row],[TIB corriente (%EA) por SFC]])^(1/12)-1 -> 0.01619361934 | G126: =(1+Intereses[[#This Row],[Tasa Legal Usura (%EA)]])^(1/12)-1 -> 0.0233345938
A127: 2008-01-01 | B127: 2008-01-31 | C127: 0.2183 | D127: 0.32745 | E127: 31 | F127: =(1+Intereses[[#This Row],[TIB corriente (%EA) por SFC]])^(1/12)-1 -> 0.01659082794 | G127: =(1+Intereses[[#This Row],[Tasa Legal Usura (%EA)]])^(1/12)-1 -> 0.02388578678
A128: 2008-02-01 | B128: 2008-02-29 | C128: 0.2183 | D128: 0.32745 | E128: 29 | F128: =(1+Intereses[[#This Row],[TIB corriente (%EA) por SFC]])^(1/12)-1 -> 0.01659082794 | G128: =(1+Intereses[[#This Row],[Tasa Legal Usura (%EA)]])^(1/12)-1 -> 0.02388578678
A129: 2008-03-01 | B129: 2008-03-31 | C129: 0.2183 | D129: 0.32745 | E129: 31 | F129: =(1+Intereses[[#This Row],[TIB corriente (%EA) por SFC]])^(1/12)-1 -> 0.01659082794 | G129: =(1+Intereses[[#This Row],[Tasa Legal Usura (%EA)]])^(1/12)-1 -> 0.02388578678
A130: 2008-04-01 | B130: 2008-04-30 | C130: 0.2192 | D130: 0.3288 | E130: 30 | F130: =(1+Intereses[[#This Row],[TIB corriente (%EA) por SFC]])^(1/12)-1 -> 0.0166533893 | G130: =(1+Intereses[[#This Row],[Tasa Legal Usura (%EA)]])^(1/12)-1 -> 0.02397251961
A131: 2008-05-01 | B131: 2008-05-31 | C131: 0.2192 | D131: 0.3288 | E131: 31 | F131: =(1+Intereses[[#This Row],[TIB corriente (%EA) por SFC]])^(1/12)-1 -> 0.0166533893 | G131: =(1+Intereses[[#This Row],[Tasa Legal Usura (%EA)]])^(1/12)-1 -> 0.02397251961
A132: 2008-06-01 | B132: 2008-06-30 | C132: 0.2192 | D132: 0.3288 | E132: 30 | F132: =(1+Intereses[[#This Row],[TIB corriente (%EA) por SFC]])^(1/12)-1 -> 0.0166533893 | G132: =(1+Intereses[[#This Row],[Tasa Legal Usura (%EA)]])^(1/12)-1 -> 0.02397251961
A133: 2008-07-01 | B133: 2008-07-31 | C133: 0.2151 | D133: 0.32265 | E133: 31 | F133: =(1+Intereses[[#This Row],[TIB corriente (%EA) por SFC]])^(1/12)-1 -> 0.0163680439 | G133: =(1+Intereses[[#This Row],[Tasa Legal Usura (%EA)]])^(1/12)-1 -> 0.02357674716
A134: 2008-08-01 | B134: 2008-08-31 | C134: 0.2151 | D134: 0.32265 | E134: 31 | F134: =(1+Intereses[[#This Row],[TIB corriente (%EA) por SFC]])^(1/12)-1 -> 0.0163680439 | G134: =(1+Intereses[[#This Row],[Tasa Legal Usura (%EA)]])^(1/12)-1 -> 0.02357674716
A135: 2008-09-01 | B135: 2008-09-30 | C135: 0.2151 | D135: 0.32265 | E135: 30 | F135: =(1+Intereses[[#This Row],[TIB corriente (%EA) por SFC]])^(1/12)-1 -> 0.0163680439 | G135: =(1+Intereses[[#This Row],[Tasa Legal Usura (%EA)]])^(1/12)-1 -> 0.02357674716
A136: 2008-10-01 | B136: 2008-10-31 | C136: 0.2102 | D136: 0.3153 | E136: 31 | F136: =(1+Intereses[[#This Row],[TIB corriente (%EA) por SFC]])^(1/12)-1 -> 0.01602586137 | G136: =(1+Intereses[[#This Row],[Tasa Legal Usura (%EA)]])^(1/12)-1 -> 0.02310153206
A137: 2008-11-01 | B137: 2008-11-30 | C137: 0.2102 | D137: 0.3153 | E137: 30 | F137: =(1+Intereses[[#This Row],[TIB corriente (%EA) por SFC]])^(1/12)-1 -> 0.01602586137 | G137: =(1+Intereses[[#This Row],[Tasa Legal Usura (%EA)]])^(1/12)-1 -> 0.02310153206
A138: 2008-12-01 | B138: 2008-12-31 | C138: 0.2102 | D138: 0.3153 | E138: 31 | F138: =(1+Intereses[[#This Row],[TIB corriente (%EA) por SFC]])^(1/12)-1 -> 0.01602586137 | G138: =(1+Intereses[[#This Row],[Tasa Legal Usura (%EA)]])^(1/12)-1 -> 0.02310153206
A139: 2009-01-01 | B139: 2009-01-31 | C139: 0.2047 | D139: 0.30705 | E139: 31 | F139: =(1+Intereses[[#This Row],[TIB corriente (%EA) por SFC]])^(1/12)-1 -> 0.01564026283 | G139: =(1+Intereses[[#This Row],[Tasa Legal Usura (%EA)]])^(1/12)-1 -> 0.02256521902
A140: 2009-02-01 | B140: 2009-02-28 | C140: 0.2047 | D140: 0.30705 | E140: 28 | F140: =(1+Intereses[[#This Row],[TIB corriente (%EA) por SFC]])^(1/12)-1 -> 0.01564026283 | G140: =(1+Intereses[[#This Row],[Tasa Legal Usura (%EA)]])^(1/12)-1 -> 0.02256521902
A141: 2009-03-01 | B141: 2009-03-31 | C141: 0.2047 | D141: 0.30705 | E141: 31 | F141: =(1+Intereses[[#This Row],[TIB corriente (%EA) por SFC]])^(1/12)-1 -> 0.01564026283 | G141: =(1+Intereses[[#This Row],[Tasa Legal Usura (%EA)]])^(1/12)-1 -> 0.02256521902
A142: 2009-04-01 | B142: 2009-04-30 | C142: 0.2028 | D142: 0.3042 | E142: 30 | F142: =(1+Intereses[[#This Row],[TIB corriente (%EA) por SFC]])^(1/12)-1 -> 0.01550668097 | G142: =(1+Intereses[[#This Row],[Tasa Legal Usura (%EA)]])^(1/12)-1 -> 0.02237922592
A143: 2009-05-01 | B143: 2009-05-31 | C143: 0.2028 | D143: 0.3042 | E143: 31 | F143: =(1+Intereses[[#This Row],[TIB corriente (%EA) por SFC]])^(1/12)-1 -> 0.01550668097 | G143: =(1+Intereses[[#This Row],[Tasa Legal Usura (%EA)]])^(1/12)-1 -> 0.02237922592
A144: 2009-06-01 | B144: 2009-06-30 | C144: 0.2028 | D144: 0.3042 | E144: 30 | F144: =(1+Intereses[[#This Row],[TIB corriente (%EA) por SFC]])^(1/12)-1 -> 0.01550668097 | G144: =(1+Intereses[[#This Row],[Tasa Legal Usura (%EA)]])^(1/12)-1 -> 0.02237922592
A145: 2009-07-01 | B145: 2009-07-31 | C145: 0.1865 | D145: 0.27975 | E145: 31 | F145: =(1+Intereses[[#This Row],[TIB corriente (%EA) por SFC]])^(1/12)-1 -> 0.01435267431 | G145: =(1+Intereses[[#This Row],[Tasa Legal Usura (%EA)]])^(1/12)-1 -> 0.02076811267
A146: 2009-08-01 | B146: 2009-08-31 | C146: 0.1865 | D146: 0.27975 | E146: 31 | F146: =(1+Intereses[[#This Row],[TIB corriente (%EA) por SFC]])^(1/12)-1 -> 0.01435267431 | G146: =(1+Intereses[[#This Row],[Tasa Legal Usura (%EA)]])^(1/12)-1 -> 0.02076811267
A147: 2009-09-01 | B147: 2009-09-30 | C147: 0.1865 | D147: 0.27975 | E147: 30 | F147: =(1+Intereses[[#This Row],[TIB corriente (%EA) por SFC]])^(1/12)-1 -> 0.01435267431 | G147: =(1+Intereses[[#This Row],[Tasa Legal Usura (%EA)]])^(1/12)-1 -> 0.02076811267
A148: 2009-10-01 | B148: 2009-10-31 | C148: 0.1728 | D148: 0.2592 | E148: 31 | F148: =(1+Intereses[[#This Row],[TIB corriente (%EA) por SFC]])^(1/12)-1 -> 0.01337144646 | G148: =(1+Intereses[[#This Row],[Tasa Legal Usura (%EA)]])^(1/12)-1 -> 0.01939201232
A149: 2009-11-01 | B149: 2009-11-30 | C149: 0.1728 | D149: 0.2592 | E149: 30 | F149: =(1+Intereses[[#This Row],[TIB corriente (%EA) por SFC]])^(1/12)-1 -> 0.01337144646 | G149: =(1+Intereses[[#This Row],[Tasa Legal Usura (%EA)]])^(1/12)-1 -> 0.01939201232
A150: 2009-12-01 | B150: 2009-12-31 | C150: 0.1728 | D150: 0.2592 | E150: 31 | F150: =(1+Intereses[[#This Row],[TIB corriente (%EA) por SFC]])^(1/12)-1 -> 0.01337144646 | G150: =(1+Intereses[[#This Row],[Tasa Legal Usura (%EA)]])^(1/12)-1 -> 0.01939201232
A151: 2010-01-01 | B151: 2010-01-31 | C151: 0.1614 | D151: 0.2421 | E151: 31 | F151: =(1+Intereses[[#This Row],[TIB corriente (%EA) por SFC]])^(1/12)-1 -> 0.01254690802 | G151: =(1+Intereses[[#This Row],[Tasa Legal Usura (%EA)]])^(1/12)-1 -> 0.01823115279
A152: 2010-02-01 | B152: 2010-02-28 | C152: 0.1614 | D152: 0.2421 | E152: 28 | F152: =(1+Intereses[[#This Row],[TIB corriente (%EA) por SFC]])^(1/12)-1 -> 0.01254690802 | G152: =(1+Intereses[[#This Row],[Tasa Legal Usura (%EA)]])^(1/12)-1 -> 0.01823115279
A153: 2010-03-01 | B153: 2010-03-31 | C153: 0.1614 | D153: 0.2421 | E153: 31 | F153: =(1+Intereses[[#This Row],[TIB corriente (%EA) por SFC]])^(1/12)-1 -> 0.01254690802 | G153: =(1+Intereses[[#This Row],[Tasa Legal Usura (%EA)]])^(1/12)-1 -> 0.01823115279
A154: 2010-04-01 | B154: 2010-04-30 | C154: 0.1531 | D154: 0.22965 | E154: 30 | F154: =(1+Intereses[[#This Row],[TIB corriente (%EA) por SFC]])^(1/12)-1 -> 0.0119419059 | G154: =(1+Intereses[[#This Row],[Tasa Legal Usura (%EA)]])^(1/12)-1 -> 0.01737671327
A155: 2010-05-01 | B155: 2010-05-31 | C155: 0.1531 | D155: 0.22965 | E155: 31 | F155: =(1+Intereses[[#This Row],[TIB corriente (%EA) por SFC]])^(1/12)-1 -> 0.0119419059 | G155: =(1+Intereses[[#This Row],[Tasa Legal Usura (%EA)]])^(1/12)-1 -> 0.01737671327
A156: 2010-06-01 | B156: 2010-06-30 | C156: 0.1531 | D156: 0.22965 | E156: 30 | F156: =(1+Intereses[[#This Row],[TIB corriente (%EA) por SFC]])^(1/12)-1 -> 0.0119419059 | G156: =(1+Intereses[[#This Row],[Tasa Legal Usura (%EA)]])^(1/12)-1 -> 0.01737671327
A157: 2010-07-01 | B157: 2010-07-31 | C157: 0.1494 | D157: 0.2241 | E157: 31 | F157: =(1+Intereses[[#This Row],[TIB corriente (%EA) por SFC]])^(1/12)-1 -> 0.01167091879 | G157: =(1+Intereses[[#This Row],[Tasa Legal Usura (%EA)]])^(1/12)-1 -> 0.0169932603
A158: 2010-08-01 | B158: 2010-08-31 | C158: 0.1494 | D158: 0.2241 | E158: 31 | F158: =(1+Intereses[[#This Row],[TIB corriente (%EA) por SFC]])^(1/12)-1 -> 0.01167091879 | G158: =(1+Intereses[[#This Row],[Tasa Legal Usura (%EA)]])^(1/12)-1 -> 0.0169932603
A159: 2010-09-01 | B159: 2010-09-30 | C159: 0.1494 | D159: 0.2241 | E159: 30 | F159: =(1+Intereses[[#This Row],[TIB corriente (%EA) por SFC]])^(1/12)-1 -> 0.01167091879 | G159: =(1+Intereses[[#This Row],[Tasa Legal Usura (%EA)]])^(1/12)-1 -> 0.0169932603
A160: 2010-10-01 | B160: 2010-10-31 | C160: 0.1421 | D160: 0.21315 | E160: 31 | F160: =(1+Intereses[[#This Row],[TIB corriente (%EA) por SFC]])^(1/12)-1 -> 0.0111339152 | G160: =(1+Intereses[[#This Row],[Tasa Legal Usura (%EA)]])^(1/12)-1 -> 0.01623202101
A161: 2010-11-01 | B161: 2010-11-30 | C161: 0.1421 | D161: 0.21315 | E161: 30 | F161: =(1+Intereses[[#This Row],[TIB corriente (%EA) por SFC]])^(1/12)-1 -> 0.0111339152 | G161: =(1+Intereses[[#This Row],[Tasa Legal Usura (%EA)]])^(1/12)-1 -> 0.01623202101
A162: 2010-12-01 | B162: 2010-12-31 | C162: 0.1421 | D162: 0.21315 | E162: 31 | F162: =(1+Intereses[[#This Row],[TIB corriente (%EA) por SFC]])^(1/12)-1 -> 0.0111339152 | G162: =(1+Intereses[[#This Row],[Tasa Legal Usura (%EA)]])^(1/12)-1 -> 0.01623202101
A163: 2011-01-01 | B163: 2011-01-31 | C163: 0.1561 | D163: 0.23415 | E163: 31 | F163: =(1+Intereses[[#This Row],[TIB corriente (%EA) por SFC]])^(1/12)-1 -> 0.01216104068 | G163: =(1+Intereses[[#This Row],[Tasa Legal Usura (%EA)]])^(1/12)-1 -> 0.01768645819
A164: 2011-02-01 | B164: 2011-02-28 | C164: 0.1561 | D164: 0.23415 | E164: 28 | F164: =(1+Intereses[[#This Row],[TIB corriente (%EA) por SFC]])^(1/12)-1 -> 0.01216104068 | G164: =(1+Intereses[[#This Row],[Tasa Legal Usura (%EA)]])^(1/12)-1 -> 0.01768645819
A165: 2011-03-01 | B165: 2011-03-31 | C165: 0.1561 | D165: 0.23415 | E165: 31 | F165: =(1+Intereses[[#This Row],[TIB corriente (%EA) por SFC]])^(1/12)-1 -> 0.01216104068 | G165: =(1+Intereses[[#This Row],[Tasa Legal Usura (%EA)]])^(1/12)-1 -> 0.01768645819
A166: 2011-04-01 | B166: 2011-04-30 | C166: 0.1769 | D166: 0.26535 | E166: 30 | F166: =(1+Intereses[[#This Row],[TIB corriente (%EA) por SFC]])^(1/12)-1 -> 0.01366619553 | G166: =(1+Intereses[[#This Row],[Tasa Legal Usura (%EA)]])^(1/12)-1 -> 0.01980598353
A167: 2011-05-01 | B167: 2011-05-31 | C167: 0.1769 | D167: 0.26535 | E167: 31 | F167: =(1+Intereses[[#This Row],[TIB corriente (%EA) por SFC]])^(1/12)-1 -> 0.01366619553 | G167: =(1+Intereses[[#This Row],[Tasa Legal Usura (%EA)]])^(1/12)-1 -> 0.01980598353
A168: 2011-06-01 | B168: 2011-06-30 | C168: 0.1769 | D168: 0.26535 | E168: 30 | F168: =(1+Intereses[[#This Row],[TIB corriente (%EA) por SFC]])^(1/12)-1 -> 0.01366619553 | G168: =(1+Intereses[[#This Row],[Tasa Legal Usura (%EA)]])^(1/12)-1 -> 0.01980598353
A169: 2011-07-01 | B169: 2011-07-31 | C169: 0.1863 | D169: 0.27945 | E169: 31 | F169: =(1+Intereses[[#This Row],[TIB corriente (%EA) por SFC]])^(1/12)-1 -> 0.01433842468 | G169: =(1+Intereses[[#This Row],[Tasa Legal Usura (%EA)]])^(1/12)-1 -> 0.02074816975
A170: 2011-08-01 | B170: 2011-08-31 | C170: 0.1863 | D170: 0.27945 | E170: 31 | F170: =(1+Intereses[[#This Row],[TIB corriente (%EA) por SFC]])^(1/12)-1 -> 0.01433842468 | G170: =(1+Intereses[[#This Row],[Tasa Legal Usura (%EA)]])^(1/12)-1 -> 0.02074816975
A171: 2011-09-01 | B171: 2011-09-30 | C171: 0.1863 | D171: 0.27945 | E171: 30 | F171: =(1+Intereses[[#This Row],[TIB corriente (%EA) por SFC]])^(1/12)-1 -> 0.01433842468 | G171: =(1+Intereses[[#This Row],[Tasa Legal Usura (%EA)]])^(1/12)-1 -> 0.02074816975
A172: 2011-10-01 | B172: 2011-10-31 | C172: 0.1939 | D172: 0.29085 | E172: 31 | F172: =(1+Intereses[[#This Row],[TIB corriente (%EA) por SFC]])^(1/12)-1 -> 0.0148783688 | G172: =(1+Intereses[[#This Row],[Tasa Legal Usura (%EA)]])^(1/12)-1 -> 0.0215030043
A173: 2011-11-01 | B173: 2011-11-30 | C173: 0.1939 | D173: 0.29085 | E173: 30 | F173: =(1+Intereses[[#This Row],[TIB corriente (%EA) por SFC]])^(1/12)-1 -> 0.0148783688 | G173: =(1+Intereses[[#This Row],[Tasa Legal Usura (%EA)]])^(1/12)-1 -> 0.0215030043
A174: 2011-12-01 | B174: 2011-12-31 | C174: 0.1939 | D174: 0.29085 | E174: 31 | F174: =(1+Intereses[[#This Row],[TIB corriente (%EA) por SFC]])^(1/12)-1 -> 0.0148783688 | G174: =(1+Intereses[[#This Row],[Tasa Legal Usura (%EA)]])^(1/12)-1 -> 0.0215030043
A175: 2012-01-01 | B175: 2012-01-31 | C175: 0.1992 | D175: 0.2988 | E175: 31 | F175: =(1+Intereses[[#This Row],[TIB corriente (%EA) por SFC]])^(1/12)-1 -> 0.01525304718 | G175: =(1+Intereses[[#This Row],[Tasa Legal Usura (%EA)]])^(1/12)-1 -> 0.02202579389
A176: 2012-02-01 | B176: 2012-02-29 | C176: 0.1992 | D176: 0.2988 | E176: 29 | F176: =(1+Intereses[[#This Row],[TIB corriente (%EA) por SFC]])^(1/12)-1 -> 0.01525304718 | G176: =(1+Intereses[[#This Row],[Tasa Legal Usura (%EA)]])^(1/12)-1 -> 0.02202579389
A177: 2012-03-01 | B177: 2012-03-31 | C177: 0.1992 | D177: 0.2988 | E177: 31 | F177: =(1+Intereses[[#This Row],[TIB corriente (%EA) por SFC]])^(1/12)-1 -> 0.01525304718 | G177: =(1+Intereses[[#This Row],[Tasa Legal Usura (%EA)]])^(1/12)-1 -> 0.02202579389
A178: 2012-04-01 | B178: 2012-04-30 | C178: 0.2052 | D178: 0.3078 | E178: 30 | F178: =(1+Intereses[[#This Row],[TIB corriente (%EA) por SFC]])^(1/12)-1 -> 0.01567538385 | G178: =(1+Intereses[[#This Row],[Tasa Legal Usura (%EA)]])^(1/12)-1 -> 0.02261410279
A179: 2012-05-01 | B179: 2012-05-31 | C179: 0.2052 | D179: 0.3078 | E179: 31 | F179: =(1+Intereses[[#This Row],[TIB corriente (%EA) por SFC]])^(1/12)-1 -> 0.01567538385 | G179: =(1+Intereses[[#This Row],[Tasa Legal Usura (%EA)]])^(1/12)-1 -> 0.02261410279
A180: 2012-06-01 | B180: 2012-06-30 | C180: 0.2052 | D180: 0.3078 | E180: 30 | F180: =(1+Intereses[[#This Row],[TIB corriente (%EA) por SFC]])^(1/12)-1 -> 0.01567538385 | G180: =(1+Intereses[[#This Row],[Tasa Legal Usura (%EA)]])^(1/12)-1 -> 0.02261410279
A181: 2012-07-01 | B181: 2012-07-31 | C181: 0.2086 | D181: 0.3129 | E181: 31 | F181: =(1+Intereses[[#This Row],[TIB corriente (%EA) por SFC]])^(1/12)-1 -> 0.01591385321 | G181: =(1+Intereses[[#This Row],[Tasa Legal Usura (%EA)]])^(1/12)-1 -> 0.0229458325
A182: 2012-08-01 | B182: 2012-08-31 | C182: 0.2086 | D182: 0.3129 | E182: 31 | F182: =(1+Intereses[[#This Row],[TIB corriente (%EA) por SFC]])^(1/12)-1 -> 0.01591385321 | G182: =(1+Intereses[[#This Row],[Tasa Legal Usura (%EA)]])^(1/12)-1 -> 0.0229458325
A183: 2012-09-01 | B183: 2012-09-30 | C183: 0.2086 | D183: 0.3129 | E183: 30 | F183: =(1+Intereses[[#This Row],[TIB corriente (%EA) por SFC]])^(1/12)-1 -> 0.01591385321 | G183: =(1+Intereses[[#This Row],[Tasa Legal Usura (%EA)]])^(1/12)-1 -> 0.0229458325
A184: 2012-10-01 | B184: 2012-10-31 | C184: 0.2089 | D184: 0.31335 | E184: 31 | F184: =(1+Intereses[[#This Row],[TIB corriente (%EA) por SFC]])^(1/12)-1 -> 0.01593486509 | G184: =(1+Intereses[[#This Row],[Tasa Legal Usura (%EA)]])^(1/12)-1 -> 0.02297504603
A185: 2012-11-01 | B185: 2012-11-30 | C185: 0.2089 | D185: 0.31335 | E185: 30 | F185: =(1+Intereses[[#This Row],[TIB corriente (%EA) por SFC]])^(1/12)-1 -> 0.01593486509 | G185: =(1+Intereses[[#This Row],[Tasa Legal Usura (%EA)]])^(1/12)-1 -> 0.02297504603
A186: 2012-12-01 | B186: 2012-12-31 | C186: 0.2089 | D186: 0.31335 | E186: 31 | F186: =(1+Intereses[[#This Row],[TIB corriente (%EA) por SFC]])^(1/12)-1 -> 0.01593486509 | G186: =(1+Intereses[[#This Row],[Tasa Legal Usura (%EA)]])^(1/12)-1 -> 0.02297504603
A187: 2013-01-01 | B187: 2013-01-31 | C187: 0.2075 | D187: 0.31125 | E187: 31 | F187: =(1+Intereses[[#This Row],[TIB corriente (%EA) por SFC]])^(1/12)-1 -> 0.01583676873 | G187: =(1+Intereses[[#This Row],[Tasa Legal Usura (%EA)]])^(1/12)-1 -> 0.02283863764
A188: 2013-02-01 | B188: 2013-02-28 | C188: 0.2075 | D188: 0.31125 | E188: 28 | F188: =(1+Intereses[[#This Row],[TIB corriente (%EA) por SFC]])^(1/12)-1 -> 0.01583676873 | G188: =(1+Intereses[[#This Row],[Tasa Legal Usura (%EA)]])^(1/12)-1 -> 0.02283863764
A189: 2013-03-01 | B189: 2013-03-31 | C189: 0.2075 | D189: 0.31125 | E189: 31 | F189: =(1+Intereses[[#This Row],[TIB corriente (%EA) por SFC]])^(1/12)-1 -> 0.01583676873 | G189: =(1+Intereses[[#This Row],[Tasa Legal Usura (%EA)]])^(1/12)-1 -> 0.02283863764
A190: 2013-04-01 | B190: 2013-04-30 | C190: 0.2083 | D190: 0.31245 | E190: 30 | F190: =(1+Intereses[[#This Row],[TIB corriente (%EA) por SFC]])^(1/12)-1 -> 0.01589283655 | G190: =(1+Intereses[[#This Row],[Tasa Legal Usura (%EA)]])^(1/12)-1 -> 0.02291660979
A191: 2013-05-01 | B191: 2013-05-31 | C191: 0.2083 | D191: 0.31245 | E191: 31 | F191: =(1+Intereses[[#This Row],[TIB corriente (%EA) por SFC]])^(1/12)-1 -> 0.01589283655 | G191: =(1+Intereses[[#This Row],[Tasa Legal Usura (%EA)]])^(1/12)-1 -> 0.02291660979
A192: 2013-06-01 | B192: 2013-06-30 | C192: 0.2083 | D192: 0.31245 | E192: 30 | F192: =(1+Intereses[[#This Row],[TIB corriente (%EA) por SFC]])^(1/12)-1 -> 0.01589283655 | G192: =(1+Intereses[[#This Row],[Tasa Legal Usura (%EA)]])^(1/12)-1 -> 0.02291660979
A193: 2013-07-01 | B193: 2013-07-31 | C193: 0.2034 | D193: 0.3051 | E193: 31 | F193: =(1+Intereses[[#This Row],[TIB corriente (%EA) por SFC]])^(1/12)-1 -> 0.0155488856 | G193: =(1+Intereses[[#This Row],[Tasa Legal Usura (%EA)]])^(1/12)-1 -> 0.0224380008
A194: 2013-08-01 | B194: 2013-08-31 | C194: 0.2034 | D194: 0.3051 | E194: 31 | F194: =(1+Intereses[[#This Row],[TIB corriente (%EA) por SFC]])^(1/12)-1 -> 0.0155488856 | G194: =(1+Intereses[[#This Row],[Tasa Legal Usura (%EA)]])^(1/12)-1 -> 0.0224380008
A195: 2013-09-01 | B195: 2013-09-30 | C195: 0.2034 | D195: 0.3051 | E195: 30 | F195: =(1+Intereses[[#This Row],[TIB corriente (%EA) por SFC]])^(1/12)-1 -> 0.0155488856 | G195: =(1+Intereses[[#This Row],[Tasa Legal Usura (%EA)]])^(1/12)-1 -> 0.0224380008
A196: 2013-10-01 | B196: 2013-10-31 | C196: 0.1985 | D196: 0.29775 | E196: 31 | F196: =(1+Intereses[[#This Row],[TIB corriente (%EA) por SFC]])^(1/12)-1 -> 0.01520364846 | G196: =(1+Intereses[[#This Row],[Tasa Legal Usura (%EA)]])^(1/12)-1 -> 0.02195691461
A197: 2013-11-01 | B197: 2013-11-30 | C197: 0.1985 | D197: 0.29775 | E197: 30 | F197: =(1+Intereses[[#This Row],[TIB corriente (%EA) por SFC]])^(1/12)-1 -> 0.01520364846 | G197: =(1+Intereses[[#This Row],[Tasa Legal Usura (%EA)]])^(1/12)-1 -> 0.02195691461
A198: 2013-12-01 | B198: 2013-12-31 | C198: 0.1985 | D198: 0.29775 | E198: 31 | F198: =(1+Intereses[[#This Row],[TIB corriente (%EA) por SFC]])^(1/12)-1 -> 0.01520364846 | G198: =(1+Intereses[[#This Row],[Tasa Legal Usura (%EA)]])^(1/12)-1 -> 0.02195691461
A199: 2014-01-01 | B199: 2014-01-31 | C199: 0.1965 | D199: 0.29475 | E199: 31 | F199: =(1+Intereses[[#This Row],[TIB corriente (%EA) por SFC]])^(1/12)-1 -> 0.01506236338 | G199: =(1+Intereses[[#This Row],[Tasa Legal Usura (%EA)]])^(1/12)-1 -> 0.0217598348
A200: 2014-02-01 | B200: 2014-02-28 | C200: 0.1965 | D200: 0.29475 | E200: 28 | F200: =(1+Intereses[[#This Row],[TIB corriente (%EA) por SFC]])^(1/12)-1 -> 0.01506236338 | G200: =(1+Intereses[[#This Row],[Tasa Legal Usura (%EA)]])^(1/12)-1 -> 0.0217598348
... 96 more rows
